Workbook

Sheet Lâmina_Comparativo de Ações
E1: Lâmina - Comparativo de Ações (Empresas Brasileiras)
B2: Dta. Últ. Cot.: | D2: =IF($D$3="",_xll.ECONOMATICA("IBOV","Date of Last Quote"),$D$3) -> 2024-09-26 | E2: ← Não Modificar
B3: Dta. Pref. Últ. Cot.: | E3: ← Para alterar a data da Célula D2, basta digitar na Célula D3
B5: Dados Gerais
B6: Código | C6: Nome - Seleciona Ativo ↓ | E6: Subsetor Bovespa | G6: Segmento listagem Bovespa | H6: Free Float Empresa | I6: Maior Acionista Com Voto | M6: Participação no Ibovespa | N6: Data da Última Cotação | O6: Fechamento | P6: Máximo 52s | Q6: Fechamento vs Máx 52s | R6: Volume Médio 1M (Milhões)
B7: =Base!H4 -> PETR3 | C7: Petrobras ON | E7: =IFERROR(_xll.ECONOMATICA(B7&"<XBSP>","Subsector Bovespa"),"") -> Petróleo gás e biocombustíveis | G7: =IFERROR(_xll.ECONOMATICA(B7&"<XBSP>","Segmento listagem Bovespa"),"") -> Nível 2 | H7: =IFERROR(_xll.ECONOMATICA(B7&"<XBSP>","ShrsHold",,"LATEST",,,,"decimal","false","false",,{"std.cac.ccacq=7";"std.cac.nm=0";"std.cac.fam=1"}),"") -> 0.6091518773 | I7: =IFERROR(_xll.ECONOMATICA(B7&"<XBSP>","MainShHol",,"LATEST",,,,,"false","false",,{"std.cac.tpa=0";"std.cac.en=1";"std.cac.fam=1"}),"") -> Uniao Federal (Tesouro Nacional) | M7: =IFERROR(_xll.ECONOMATICA(B7,"Index comp",,"LATEST",,,,"DECIMAL","false","FALSE",,{"AmountInvestedBy=IBOV<XBSP>"}),"") -> 0.04432 | N7: =IFERROR(_xll.ECONOMATICA(B7&"<XBSP>","Date of Last Quote"),"") -> 2024-09-26 | O7: =IFERROR(_xll.ECONOMATICA(B7&"<XBSP>","close",,$D$2,,,,,"false","false"),"") -> 39.68 | P7: =IFERROR(_xll.ECONOMATICA(B7&"<XBSP>","High","52W",$D$2,,,"ORIGINAL CURRENCY",,"false","false",{"std.tec.caddip=true"}),"") -> 43.59 | Q7: =IFERROR(O7/P7,"") -> 0.9103005276 | R7: =IFERROR(_xll.ECONOMATICA(B7&"<XBSP>","Hist Average","1M",$D$2,,,,"THOUSANDS","false","false",,{"std.tec.cals=7"}),"") -> 444297.5529
B8: =Base!H5 -> VALE3 | C8: Vale ON | E8: =IFERROR(_xll.ECONOMATICA(B8&"<XBSP>","Subsector Bovespa"),"") -> Mineração | G8: =IFERROR(_xll.ECONOMATICA(B8&"<XBSP>","Segmento listagem Bovespa"),"") -> Novo Mercado | H8: =IFERROR(_xll.ECONOMATICA(B8&"<XBSP>","ShrsHold",,"LATEST",,,,"decimal","false","false",,{"std.cac.ccacq=7";"std.cac.nm=0";"std.cac.fam=1"}),"") -> 0.9409332238 | I8: =IFERROR(_xll.ECONOMATICA(B8&"<XBSP>","MainShHol",,"LATEST",,,,,"false","false",,{"std.cac.tpa=0";"std.cac.en=1";"std.cac.fam=1"}),"") -> Previ Cx Prev Funcs Bco Brasil | M8: =IFERROR(_xll.ECONOMATICA(B8,"Index comp",,"LATEST",,,,"DECIMAL","false","FALSE",,{"AmountInvestedBy=IBOV<XBSP>"}),"") -> 0.12517 | N8: =IFERROR(_xll.ECONOMATICA(B8&"<XBSP>","Date of Last Quote"),"") -> 2024-09-26 | O8: =IFERROR(_xll.ECONOMATICA(B8&"<XBSP>","close",,D$2,,,,,"false","false"),"") -> 64.25 | P8: =IFERROR(_xll.ECONOMATICA(B8&"<XBSP>","High","52W",$D$2,,,"ORIGINAL CURRENCY",,"false","false",{"std.tec.caddip=true"}),"") -> 72.21372904 | Q8: =IFERROR(O8/P8,"") -> 0.8897200138 | R8: =IFERROR(_xll.ECONOMATICA(B8&"<XBSP>","Hist Average","1M",$D$2,,,,"THOUSANDS","false","false",,{"std.tec.cals=7"}),"") -> 1352167.929
B9: =Base!H6 -> ABEV3 | C9: Ambev S/A ON | E9: =IFERROR(_xll.ECONOMATICA(B9&"<XBSP>","Subsector Bovespa"),"") -> Bebidas | G9: =IFERROR(_xll.ECONOMATICA(B9&"<XBSP>","Segmento listagem Bovespa"),"") -> Tradicional | H9: =IFERROR(_xll.ECONOMATICA(B9&"<XBSP>","ShrsHold",,"LATEST",,,,"decimal","false","false",,{"std.cac.ccacq=7";"std.cac.nm=0";"std.cac.fam=1"}),"") -> 0.2789015548 | I9: =IFERROR(_xll.ECONOMATICA(B9&"<XBSP>","MainShHol",,"LATEST",,,,,"false","false",,{"std.cac.tpa=0";"std.cac.en=1";"std.cac.fam=1"}),"") -> Interbrew International B.V. | M9: =IFERROR(_xll.ECONOMATICA(B9,"Index comp",,"LATEST",,,,"DECIMAL","false","FALSE",,{"AmountInvestedBy=IBOV<XBSP>"}),"") -> 0.02574 | N9: =IFERROR(_xll.ECONOMATICA(B9&"<XBSP>","Date of Last Quote"),"") -> 2024-09-26 | O9: =IFERROR(_xll.ECONOMATICA(B9&"<XBSP>","close",,D$2,,,,,"false","false"),"") -> 12.84 | P9: =IFERROR(_xll.ECONOMATICA(B9&"<XBSP>","High","52W",$D$2,,,"ORIGINAL CURRENCY",,"false","false",{"std.tec.caddip=true"}),"") -> 14.13135551 | Q9: 0.9086177183 | R9: =IFERROR(_xll.ECONOMATICA(B9&"<XBSP>","Hist Average","1M",$D$2,,,,"THOUSANDS","false","false",,{"std.tec.cals=7"}),"") -> 334034.6084
B10: =Base!H7 -> ITUB4 | C10: ItauUnibanco PN | E10: =IFERROR(_xll.ECONOMATICA(B10&"<XBSP>","Subsector Bovespa"),"") -> Intermediários financeiros | G10: =IFERROR(_xll.ECONOMATICA(B10&"<XBSP>","Segmento listagem Bovespa"),"") -> Nível 1 | H10: =IFERROR(_xll.ECONOMATICA(B10&"<XBSP>","ShrsHold",,"LATEST",,,,"decimal","false","false",,{"std.cac.ccacq=7";"std.cac.nm=0";"std.cac.fam=1"}),"") -> 0.5299283551 | I10: =IFERROR(_xll.ECONOMATICA(B10&"<XBSP>","MainShHol",,"LATEST",,,,,"false","false",,{"std.cac.tpa=0";"std.cac.en=1";"std.cac.fam=1"}),"") -> Iupar - Itau Unibanco Participacoes S.A. | M10: =IFERROR(_xll.ECONOMATICA(B10,"Index comp",,"LATEST",,,,"DECIMAL","false","FALSE",,{"AmountInvestedBy=IBOV<XBSP>"}),"") -> 0.07442 | N10: =IFERROR(_xll.ECONOMATICA(B10&"<XBSP>","Date of Last Quote"),"") -> 2024-09-26 | O10: =IFERROR(_xll.ECONOMATICA(B10&"<XBSP>","close",,D$2,,,,,"false","false"),"") -> 36.62 | P10: =IFERROR(_xll.ECONOMATICA(B10&"<XBSP>","High","52W",$D$2,,,"ORIGINAL CURRENCY",,"false","false",{"std.tec.caddip=true"}),"") -> 37.50814442 | Q10: 0.9763212914 | R10: =IFERROR(_xll.ECONOMATICA(B10&"<XBSP>","Hist Average","1M",$D$2,,,,"THOUSANDS","false","false",,{"std.tec.cals=7"}),"") -> 771245.727
B11: =Base!H8 -> CMIG4 | C11: Cemig PN | E11: =IFERROR(_xll.ECONOMATICA(B11&"<XBSP>","Subsector Bovespa"),"") -> Energia elétrica | G11: =IFERROR(_xll.ECONOMATICA(B11&"<XBSP>","Segmento listagem Bovespa"),"") -> Nível 1 | H11: =IFERROR(_xll.ECONOMATICA(B11&"<XBSP>","ShrsHold",,"LATEST",,,,"decimal","false","false",,{"std.cac.ccacq=7";"std.cac.nm=0";"std.cac.fam=1"}),"") -> 0.8133532129 | I11: =IFERROR(_xll.ECONOMATICA(B11&"<XBSP>","MainShHol",,"LATEST",,,,,"false","false",,{"std.cac.tpa=0";"std.cac.en=1";"std.cac.fam=1"}),"") -> Estado de Minas Gerais | M11: =IFERROR(_xll.ECONOMATICA(B11,"Index comp",,"LATEST",,,,"DECIMAL","false","FALSE",,{"AmountInvestedBy=IBOV<XBSP>"}),"") -> 0.00971 | N11: =IFERROR(_xll.ECONOMATICA(B11&"<XBSP>","Date of Last Quote"),"") -> 2024-09-26 | O11: =IFERROR(_xll.ECONOMATICA(B11&"<XBSP>","close",,D$2,,,,,"false","false"),"") -> 11.46 | P11: =IFERROR(_xll.ECONOMATICA(B11&"<XBSP>","High","52W",$D$2,,,"ORIGINAL CURRENCY",,"false","false",{"std.tec.caddip=true"}),"") -> 11.86749048 | Q11: 0.9656632982 | R11: =IFERROR(_xll.ECONOMATICA(B11&"<XBSP>","Hist Average","1M",$D$2,,,,"THOUSANDS","false","false",,{"std.tec.cals=7"}),"") -> 131264.7248
B12: =Base!H9 -> BRKM5 | C12: Braskem PNA | E12: =IFERROR(_xll.ECONOMATICA(B12&"<XBSP>","Subsector Bovespa"),"") -> Químicos | G12: =IFERROR(_xll.ECONOMATICA(B12&"<XBSP>","Segmento listagem Bovespa"),"") -> Nível 1 | H12: =IFERROR(_xll.ECONOMATICA(B12&"<XBSP>","ShrsHold",,"LATEST",,,,"decimal","false","false",,{"std.cac.ccacq=7";"std.cac.nm=0";"std.cac.fam=1"}),"") -> 0.3496871921 | I12: =IFERROR(_xll.ECONOMATICA(B12&"<XBSP>","MainShHol",,"LATEST",,,,,"false","false",,{"std.cac.tpa=0";"std.cac.en=1";"std.cac.fam=1"}),"") -> Nsp Investimentos S.A. - em Recuperacao Judicial | M12: =IFERROR(_xll.ECONOMATICA(B12,"Index comp",,"LATEST",,,,"DECIMAL","false","FALSE",,{"AmountInvestedBy=IBOV<XBSP>"}),"") -> 0.00248 | N12: =IFERROR(_xll.ECONOMATICA(B12&"<XBSP>","Date of Last Quote"),"") -> 2024-09-26 | O12: =IFERROR(_xll.ECONOMATICA(B12&"<XBSP>","close",,D$2,,,,,"false","false"),"") -> 20.49 | P12: =IFERROR(_xll.ECONOMATICA(B12&"<XBSP>","High","52W",$D$2,,,"ORIGINAL CURRENCY",,"false","false",{"std.tec.caddip=true"}),"") -> 27.53 | Q12: 0.7442789684 | R12: =IFERROR(_xll.ECONOMATICA(B12&"<XBSP>","Hist Average","1M",$D$2,,,,"THOUSANDS","false","false",,{"std.tec.cals=7"}),"") -> 71318.93243
B13: =Base!H10 -> SBSP3 | C13: Sabesp ON | E13: =IFERROR(_xll.ECONOMATICA(B13&"<XBSP>","Subsector Bovespa"),"") -> Água e saneamento | G13: =IFERROR(_xll.ECONOMATICA(B13&"<XBSP>","Segmento listagem Bovespa"),"") -> Novo Mercado | H13: =IFERROR(_xll.ECONOMATICA(B13&"<XBSP>","ShrsHold",,"LATEST",,,,"decimal","false","false",,{"std.cac.ccacq=7";"std.cac.nm=0";"std.cac.fam=1"}),"") -> 0.999998098 | I13: =IFERROR(_xll.ECONOMATICA(B13&"<XBSP>","MainShHol",,"LATEST",,,,,"false","false",,{"std.cac.tpa=0";"std.cac.en=1";"std.cac.fam=1"}),"") -> Governo do Estado de Sao Paulo | M13: =IFERROR(_xll.ECONOMATICA(B13,"Index comp",,"LATEST",,,,"DECIMAL","false","FALSE",,{"AmountInvestedBy=IBOV<XBSP>"}),"") -> 0.02848 | N13: =IFERROR(_xll.ECONOMATICA(B13&"<XBSP>","Date of Last Quote"),"") -> 2024-09-26 | O13: =IFERROR(_xll.ECONOMATICA(B13&"<XBSP>","close",,D$2,,,,,"false","false"),"") -> 91.35 | P13: =IFERROR(_xll.ECONOMATICA(B13&"<XBSP>","High","52W",$D$2,,,"ORIGINAL CURRENCY",,"false","false",{"std.tec.caddip=true"}),"") -> 99.92 | Q13: 0.9142313851 | R13: =IFERROR(_xll.ECONOMATICA(B13&"<XBSP>","Hist Average","1M",$D$2,,,,"THOUSANDS","false","false",,{"std.tec.cals=7"}),"") -> 332165.4424
B14: =Base!H11 -> B3SA3 | C14: B3 ON | E14: =IFERROR(_xll.ECONOMATICA(B14&"<XBSP>","Subsector Bovespa"),"") -> Serviços financeiros diversos | G14: =IFERROR(_xll.ECONOMATICA(B14&"<XBSP>","Segmento listagem Bovespa"),"") -> Novo Mercado | H14: =IFERROR(_xll.ECONOMATICA(B14&"<XBSP>","ShrsHold",,"LATEST",,,,"decimal","false","false",,{"std.cac.ccacq=7";"std.cac.nm=0";"std.cac.fam=1"}),"") -> 0.993531929 | I14: =IFERROR(_xll.ECONOMATICA(B14&"<XBSP>","MainShHol",,"LATEST",,,,,"false","false",,{"std.cac.tpa=0";"std.cac.en=1";"std.cac.fam=1"}),"") -> Capital Research Global Investors | M14: =IFERROR(_xll.ECONOMATICA(B14,"Index comp",,"LATEST",,,,"DECIMAL","false","FALSE",,{"AmountInvestedBy=IBOV<XBSP>"}),"") -> 0.02728 | N14: =IFERROR(_xll.ECONOMATICA(B14&"<XBSP>","Date of Last Quote"),"") -> 2024-09-26 | O14: =IFERROR(_xll.ECONOMATICA(B14&"<XBSP>","close",,D$2,,,,,"false","false"),"") -> 10.85 | P14: =IFERROR(_xll.ECONOMATICA(B14&"<XBSP>","High","52W",$D$2,,,"ORIGINAL CURRENCY",,"false","false",{"std.tec.caddip=true"}),"") -> 14.6345057 | Q14: 0.7413984606 | R14: =IFERROR(_xll.ECONOMATICA(B14&"<XBSP>","Hist Average","1M",$D$2,,,,"THOUSANDS","false","false",,{"std.tec.cals=7"}),"") -> 645527.8295
B16: ="Riscos e Retornos até "&TEXT(D2,"DD-MM-AA") -> Riscos e Retornos até 26-09-24
B17: Nome | D17: Classe | E17: Volatilidade 12M | F17: Sharpe 12M | G17: VAR de 1M 95% | H17: Beta 60M | I17: Correlação 60M | J17: Nº Meses acima IBOV | K17: Nº Meses abaixo IBOV | L17: Retorno 1 dia | M17: Retorno 1M | N17: Vs Ibov 1M (p.p) | O17: Retorno no Ano | P17: vs. IBOV no Ano | Q17: Retorno 12M | R17: Vs. Ibov 12M
B18: =C7 -> Petrobras ON | D18: =IFERROR(_xll.ECONOMATICA($B7&"<XBSP>","Class"),"") -> ON | E18: =IFERROR(_xll.ECONOMATICA($B7&"<XBSP>","Volatility","12m",$D$2),"") -> 29.43765435 | F18: =IFERROR(_xll.ECONOMATICA($B7&"<XBSP>","Sharpe","12m",$D$2),"") -> 0.6804078361 | G18: =IFERROR(_xll.ECONOMATICA($B7&"<XBSP>","VAR %","1y",$D$2,,,,,"false","false",,{"std.tec.ppr.per=2"}),"") -> 13.87515845 | H18: =IFERROR(_xll.ECONOMATICA($B7&"<XBSP>","Beta","60m",$D$2,,,,,"false","false"),"") -> 1.418351653 | I18: =IFERROR(_xll.ECONOMATICA($B7&"<XBSP>","Correlation","60m",$D$2,,,,,"false","false"),"") -> 0.7501068634 | J18: =IFERROR(_xll.ECONOMATICA($B7&"<XBSP>","Number Premium","1Y",$D$2,,,,,"false","false",,{"std.tec.stt.bmk=0:6158,1:0,2:79083,3:0,4:0,5:0,6:0,7:0,8:0,9:0,10:0,11:0,12:0,13:0,14:0,15:0,16:0,17:0,18:0,19:0,20:0,21:0,22:0,23:0,24:0,25:0,26:0,27:0,28:0,29:0,30:0,31:0,";"std.tec.stt.bmk=32:0,33:0,34:0,35:0,36:0,37:0,38:0,39:0,40:0,41:0,42:0,43:0,44:0,45:0,46:0,47:0,48:0,49:0,50:0,51:0,52:0,53:0,54:0,55:0,56:0,57:0,58:0,59:0,60:0,61:0,62:0,63:0,64:0,65:0,66:0,67:0,68:0,69:0,70:0,71:0,72:0,73:0,74:0,75:0,76:0,77:0,78:0,79:0";"std.tec.dret.noprc=true"}),"") -> 5 | K18: =IFERROR(_xll.ECONOMATICA($B7&"<XBSP>","Number Premium","1Y",$D$2,,,,,"false","false",,{"std.tec.stt.bmk=0:6158,1:0,2:79083,3:0,4:0,5:0,6:0,7:0,8:0,9:0,10:0,11:0,12:0,13:0,14:0,15:0,16:0,17:0,18:0,19:0,20:0,21:0,22:0,23:0,24:0,25:0,26:0,27:0,28:0,29:0,30:0,31:0,";"std.tec.stt.bmk=32:0,33:0,34:0,35:0,36:0,37:0,38:0,39:0,40:0,41:0,42:0,43:0,44:0,45:0,46:0,47:0,48:0,49:0,50:0,51:0,52:0,53:0,54:0,55:0,56:0,57:0,58:0,59:0,60:0,61:0,62:0,63:0,64:0,65:0,66:0,67:0,68:0,69:0,70:0,71:0,72:0,73:0,74:0,75:0,76:0,77:0,78:0,79:0";"std.tec.dret.cmp=-1";"std.tec.dret.noprc=true"}),"") -> 7 | L18: =IFERROR(_xll.ECONOMATICA($B7&"<XBSP>","return",,$D$2,,,,"decimal"),"") -> -0.02097211942 | M18: =IFERROR(_xll.ECONOMATICA($B7&"<XBSP>","return","1m",$D$2,,,,"decimal"),"") -> -0.07548928238 | N18: =IFERROR(_xll.ECONOMATICA($B7&"<XBSP>","Premium","1m",$D$2,,,,,,,,{"std.tec.stt.bmk=0:6158,1:0,2:79083,3:0,4:0,5:0,6:0,7:0,8:0,9:0,10:0,11:0,12:0,13:0,14:0,15:0,16:0,17:0,18:0,19:0,20:0,21:0,22:0,23:0,24:0,25:0,26:0,27:0,28:0,29:0,30:0,31:0,";"std.tec.stt.bmk=32:0,33:0,34:0,35:0,36:0,37:0,38:0,39:0,40:0,41:0,42:0,43:0,44:0,45:0,46:0,47:0,48:0,49:0,50:0,51:0,52:0,53:0,54:0,55:0,56:0,57:0,58:0,59:0,60:0,61:0,62:0,63:0,64:0,65:0,66:0,67:0,68:0,69:0,70:0,71:0,72:0,73:0,74:0,75:0,76:0,77:0,78:0,79:0";"std.tec.fordpr=1"}),"") -> -4.715290607 | O18: =IFERROR(_xll.ECONOMATICA($B7&"<XBSP>","return","in the year",$D$2,,,,"decimal"),"") -> 0.1480321701 | P18: =IFERROR(_xll.ECONOMATICA($B7&"<XBSP>","Premium","in the year",$D$2,,,,,,,,{"tc.dft=false";"tc.tp=0";"tc.pers=4";"tc.per=0";"std.tec.stt.bmk=0:6158,1:0,2:79083,3:0,4:0,5:0,6:0,7:0,8:0,9:0,10:0,11:0,12:0,13:0,14:0,15:0,16:0,17:0,18:0,19:0,20:0,21:0,22:0,23:0,24:0,25:0,26:0,27:0,28:0,29:0,30:0,31:0,";"std.tec.stt.bmk=32:0,33:0,34:0,35:0,36:0,37:0,38:0,39:0,40:0,41:0,42:0,43:0,44:0,45:0,46:0,47:0,48:0,49:0,50:0,51:0,52:0,53:0,54:0,55:0,56:0,57:0,58:0,59:0,60:0,61:0,62:0,63:0,64:0,65:0,66:0,67:0,68:0,69:0,70:0,71:0,72:0,73:0,74:0,75:0,76:0,77:0,78:0,79:0";"std.tec.fordpr=1"}),"") -> 15.679215 | Q18: =IFERROR(_xll.ECONOMATICA($B7&"<XBSP>","return","12m",$D$2,,,,"decimal"),"") -> 0.2750800201 | R18: =IFERROR(_xll.ECONOMATICA($B7&"<XBSP>","Premium","12m",$D$2,,,,,,,,{"tc.dft=false";"tc.tp=0";"tc.pers=4";"tc.per=0";"std.tec.stt.bmk=0:6158,1:0,2:79083,3:0,4:0,5:0,6:0,7:0,8:0,9:0,10:0,11:0,12:0,13:0,14:0,15:0,16:0,17:0,18:0,19:0,20:0,21:0,22:0,23:0,24:0,25:0,26:0,27:0,28:0,29:0,30:0,31:0,";"std.tec.stt.bmk=32:0,33:0,34:0,35:0,36:0,37:0,38:0,39:0,40:0,41:0,42:0,43:0,44:0,45:0,46:0,47:0,48:0,49:0,50:0,51:0,52:0,53:0,54:0,55:0,56:0,57:0,58:0,59:0,60:0,61:0,62:0,63:0,64:0,65:0,66:0,67:0,68:0,69:0,70:0,71:0,72:0,73:0,74:0,75:0,76:0,77:0,78:0,79:0";"std.tec.fordpr=1"}),"") -> 11.0303903
B19: Vale ON | D19: =IFERROR(_xll.ECONOMATICA(B8&"<XBSP>","Class"),"") -> ON | E19: =IFERROR(_xll.ECONOMATICA($B8&"<XBSP>","Volatility","12m",$D$2),"") -> 21.51747722 | F19: =IFERROR(_xll.ECONOMATICA($B8&"<XBSP>","Sharpe","12m",$D$2),"") -> 0.03735503725 | G19: =IFERROR(_xll.ECONOMATICA($B8&"<XBSP>","VAR %","1y",$D$2,,,,,"false","false",,{"std.tec.ppr.per=2"}),"") -> 10.24040824 | H19: =IFERROR(_xll.ECONOMATICA($B8&"<XBSP>","Beta","60m",$D$2,,,,,"false","false"),"") -> 0.5482042851 | I19: =IFERROR(_xll.ECONOMATICA($B8&"<XBSP>","Correlation","60m",$D$2,,,,,"false","false"),"") -> 0.4774088812 | J19: =IFERROR(_xll.ECONOMATICA($B8&"<XBSP>","Number Premium","1Y",$D$2,,,,,"false","false",,{"std.tec.stt.bmk=0:6158,1:0,2:79083,3:0,4:0,5:0,6:0,7:0,8:0,9:0,10:0,11:0,12:0,13:0,14:0,15:0,16:0,17:0,18:0,19:0,20:0,21:0,22:0,23:0,24:0,25:0,26:0,27:0,28:0,29:0,30:0,31:0,";"std.tec.stt.bmk=32:0,33:0,34:0,35:0,36:0,37:0,38:0,39:0,40:0,41:0,42:0,43:0,44:0,45:0,46:0,47:0,48:0,49:0,50:0,51:0,52:0,53:0,54:0,55:0,56:0,57:0,58:0,59:0,60:0,61:0,62:0,63:0,64:0,65:0,66:0,67:0,68:0,69:0,70:0,71:0,72:0,73:0,74:0,75:0,76:0,77:0,78:0,79:0";"std.tec.dret.noprc=true"}),"") -> 4 | K19: =IFERROR(_xll.ECONOMATICA($B8&"<XBSP>","Number Premium","1Y",$D$2,,,,,"false","false",,{"std.tec.stt.bmk=0:6158,1:0,2:79083,3:0,4:0,5:0,6:0,7:0,8:0,9:0,10:0,11:0,12:0,13:0,14:0,15:0,16:0,17:0,18:0,19:0,20:0,21:0,22:0,23:0,24:0,25:0,26:0,27:0,28:0,29:0,30:0,31:0,";"std.tec.stt.bmk=32:0,33:0,34:0,35:0,36:0,37:0,38:0,39:0,40:0,41:0,42:0,43:0,44:0,45:0,46:0,47:0,48:0,49:0,50:0,51:0,52:0,53:0,54:0,55:0,56:0,57:0,58:0,59:0,60:0,61:0,62:0,63:0,64:0,65:0,66:0,67:0,68:0,69:0,70:0,71:0,72:0,73:0,74:0,75:0,76:0,77:0,78:0,79:0";"std.tec.dret.cmp=-1";"std.tec.dret.noprc=true"}),"") -> 8 | L19: =IFERROR(_xll.ECONOMATICA($B8&"<XBSP>","return",,$D$2,,,,"decimal"),"") -> 0.06005609635 | M19: =IFERROR(_xll.ECONOMATICA($B8&"<XBSP>","return","1m",$D$2,,,,"decimal"),"") -> 0.1068044789 | N19: =IFERROR(_xll.ECONOMATICA($B8&"<XBSP>","Premium","1m",$D$2,,,,,,,,{"std.tec.stt.bmk=0:6158,1:0,2:79083,3:0,4:0,5:0,6:0,7:0,8:0,9:0,10:0,11:0,12:0,13:0,14:0,15:0,16:0,17:0,18:0,19:0,20:0,21:0,22:0,23:0,24:0,25:0,26:0,27:0,28:0,29:0,30:0,31:0,";"std.tec.stt.bmk=32:0,33:0,34:0,35:0,36:0,37:0,38:0,39:0,40:0,41:0,42:0,43:0,44:0,45:0,46:0,47:0,48:0,49:0,50:0,51:0,52:0,53:0,54:0,55:0,56:0,57:0,58:0,59:0,60:0,61:0,62:0,63:0,64:0,65:0,66:0,67:0,68:0,69:0,70:0,71:0,72:0,73:0,74:0,75:0,76:0,77:0,78:0,79:0";"std.tec.fordpr=1"}),"") -> 13.51408552 | O19: =IFERROR(_xll.ECONOMATICA($B8&"<XBSP>","return","in the year",$D$2,,,,"decimal"),"") -> -0.09875511557 | P19: =IFERROR(_xll.ECONOMATICA($B8&"<XBSP>","Premium","in the year",$D$2,,,,,,,,{"tc.dft=false";"tc.tp=0";"tc.pers=4";"tc.per=0";"std.tec.stt.bmk=0:6158,1:0,2:79083,3:0,4:0,5:0,6:0,7:0,8:0,9:0,10:0,11:0,12:0,13:0,14:0,15:0,16:0,17:0,18:0,19:0,20:0,21:0,22:0,23:0,24:0,25:0,26:0,27:0,28:0,29:0,30:0,31:0,";"std.tec.stt.bmk=32:0,33:0,34:0,35:0,36:0,37:0,38:0,39:0,40:0,41:0,42:0,43:0,44:0,45:0,46:0,47:0,48:0,49:0,50:0,51:0,52:0,53:0,54:0,55:0,56:0,57:0,58:0,59:0,60:0,61:0,62:0,63:0,64:0,65:0,66:0,67:0,68:0,69:0,70:0,71:0,72:0,73:0,74:0,75:0,76:0,77:0,78:0,79:0";"std.tec.fordpr=1"}),"") -> -8.999513571 | Q19: =IFERROR(_xll.ECONOMATICA($B8&"<XBSP>","return","12m",$D$2,,,,"decimal"),"") -> 0.09400360352 | R19: =IFERROR(_xll.ECONOMATICA($B8&"<XBSP>","Premium","12m",$D$2,,,,,,,,{"tc.dft=false";"tc.tp=0";"tc.pers=4";"tc.per=0";"std.tec.stt.bmk=0:6158,1:0,2:79083,3:0,4:0,5:0,6:0,7:0,8:0,9:0,10:0,11:0,12:0,13:0,14:0,15:0,16:0,17:0,18:0,19:0,20:0,21:0,22:0,23:0,24:0,25:0,26:0,27:0,28:0,29:0,30:0,31:0,";"std.tec.stt.bmk=32:0,33:0,34:0,35:0,36:0,37:0,38:0,39:0,40:0,41:0,42:0,43:0,44:0,45:0,46:0,47:0,48:0,49:0,50:0,51:0,52:0,53:0,54:0,55:0,56:0,57:0,58:0,59:0,60:0,61:0,62:0,63:0,64:0,65:0,66:0,67:0,68:0,69:0,70:0,71:0,72:0,73:0,74:0,75:0,76:0,77:0,78:0,79:0";"std.tec.fordpr=1"}),"") -> -7.077251364
B20: Ambev S/A ON | D20: =IFERROR(_xll.ECONOMATICA(B9&"<XBSP>","Class"),"") -> ON | E20: =IFERROR(_xll.ECONOMATICA($B9&"<XBSP>","Volatility","12m",$D$2),"") -> 18.91549807 | F20: =IFERROR(_xll.ECONOMATICA($B9&"<XBSP>","Sharpe","12m",$D$2),"") -> -0.2679197575 | G20: =IFERROR(_xll.ECONOMATICA($B9&"<XBSP>","VAR %","1y",$D$2,,,,,"false","false",,{"std.tec.ppr.per=2"}),"") -> 8.938348839 | H20: =IFERROR(_xll.ECONOMATICA($B9&"<XBSP>","Beta","60m",$D$2,,,,,"false","false"),"") -> 0.6589386387 | I20: =IFERROR(_xll.ECONOMATICA($B9&"<XBSP>","Correlation","60m",$D$2,,,,,"false","false"),"") -> 0.6423023859 | J20: =IFERROR(_xll.ECONOMATICA($B9&"<XBSP>","Number Premium","1Y",$D$2,,,,,"false","false",,{"std.tec.stt.bmk=0:6158,1:0,2:79083,3:0,4:0,5:0,6:0,7:0,8:0,9:0,10:0,11:0,12:0,13:0,14:0,15:0,16:0,17:0,18:0,19:0,20:0,21:0,22:0,23:0,24:0,25:0,26:0,27:0,28:0,29:0,30:0,31:0,";"std.tec.stt.bmk=32:0,33:0,34:0,35:0,36:0,37:0,38:0,39:0,40:0,41:0,42:0,43:0,44:0,45:0,46:0,47:0,48:0,49:0,50:0,51:0,52:0,53:0,54:0,55:0,56:0,57:0,58:0,59:0,60:0,61:0,62:0,63:0,64:0,65:0,66:0,67:0,68:0,69:0,70:0,71:0,72:0,73:0,74:0,75:0,76:0,77:0,78:0,79:0";"std.tec.dret.noprc=true"}),"") -> 5 | K20: =IFERROR(_xll.ECONOMATICA($B9&"<XBSP>","Number Premium","1Y",$D$2,,,,,"false","false",,{"std.tec.stt.bmk=0:6158,1:0,2:79083,3:0,4:0,5:0,6:0,7:0,8:0,9:0,10:0,11:0,12:0,13:0,14:0,15:0,16:0,17:0,18:0,19:0,20:0,21:0,22:0,23:0,24:0,25:0,26:0,27:0,28:0,29:0,30:0,31:0,";"std.tec.stt.bmk=32:0,33:0,34:0,35:0,36:0,37:0,38:0,39:0,40:0,41:0,42:0,43:0,44:0,45:0,46:0,47:0,48:0,49:0,50:0,51:0,52:0,53:0,54:0,55:0,56:0,57:0,58:0,59:0,60:0,61:0,62:0,63:0,64:0,65:0,66:0,67:0,68:0,69:0,70:0,71:0,72:0,73:0,74:0,75:0,76:0,77:0,78:0,79:0";"std.tec.dret.cmp=-1";"std.tec.dret.noprc=true"}),"") -> 7 | L20: =IFERROR(_xll.ECONOMATICA($B9&"<XBSP>","return",,$D$2,,,,"decimal"),"") -> 0.01261829653 | M20: =IFERROR(_xll.ECONOMATICA($B9&"<XBSP>","return","1m",$D$2,,,,"decimal"),"") -> -0.01834862385 | N20: =IFERROR(_xll.ECONOMATICA($B9&"<XBSP>","Premium","1m",$D$2,,,,,,,,{"std.tec.stt.bmk=0:6158,1:0,2:79083,3:0,4:0,5:0,6:0,7:0,8:0,9:0,10:0,11:0,12:0,13:0,14:0,15:0,16:0,17:0,18:0,19:0,20:0,21:0,22:0,23:0,24:0,25:0,26:0,27:0,28:0,29:0,30:0,31:0,";"std.tec.stt.bmk=32:0,33:0,34:0,35:0,36:0,37:0,38:0,39:0,40:0,41:0,42:0,43:0,44:0,45:0,46:0,47:0,48:0,49:0,50:0,51:0,52:0,53:0,54:0,55:0,56:0,57:0,58:0,59:0,60:0,61:0,62:0,63:0,64:0,65:0,66:0,67:0,68:0,69:0,70:0,71:0,72:0,73:0,74:0,75:0,76:0,77:0,78:0,79:0";"std.tec.fordpr=1"}),"") -> 0.9987752463 | O20: =IFERROR(_xll.ECONOMATICA($B9&"<XBSP>","return","in the year",$D$2,,,,"decimal"),"") -> -0.06482155863 | P20: =IFERROR(_xll.ECONOMATICA($B9&"<XBSP>","Premium","in the year",$D$2,,,,,,,,{"tc.dft=false";"tc.tp=0";"tc.pers=4";"tc.per=0";"std.tec.stt.bmk=0:6158,1:0,2:79083,3:0,4:0,5:0,6:0,7:0,8:0,9:0,10:0,11:0,12:0,13:0,14:0,15:0,16:0,17:0,18:0,19:0,20:0,21:0,22:0,23:0,24:0,25:0,26:0,27:0,28:0,29:0,30:0,31:0,";"std.tec.stt.bmk=32:0,33:0,34:0,35:0,36:0,37:0,38:0,39:0,40:0,41:0,42:0,43:0,44:0,45:0,46:0,47:0,48:0,49:0,50:0,51:0,52:0,53:0,54:0,55:0,56:0,57:0,58:0,59:0,60:0,61:0,62:0,63:0,64:0,65:0,66:0,67:0,68:0,69:0,70:0,71:0,72:0,73:0,74:0,75:0,76:0,77:0,78:0,79:0";"std.tec.fordpr=1"}),"") -> -5.606157877 | Q20: =IFERROR(_xll.ECONOMATICA($B9&"<XBSP>","return","12m",$D$2,,,,"decimal"),"") -> 0.03613078765 | R20: =IFERROR(_xll.ECONOMATICA($B9&"<XBSP>","Premium","12m",$D$2,,,,,,,,{"tc.dft=false";"tc.tp=0";"tc.pers=4";"tc.per=0";"std.tec.stt.bmk=0:6158,1:0,2:79083,3:0,4:0,5:0,6:0,7:0,8:0,9:0,10:0,11:0,12:0,13:0,14:0,15:0,16:0,17:0,18:0,19:0,20:0,21:0,22:0,23:0,24:0,25:0,26:0,27:0,28:0,29:0,30:0,31:0,";"std.tec.stt.bmk=32:0,33:0,34:0,35:0,36:0,37:0,38:0,39:0,40:0,41:0,42:0,43:0,44:0,45:0,46:0,47:0,48:0,49:0,50:0,51:0,52:0,53:0,54:0,55:0,56:0,57:0,58:0,59:0,60:0,61:0,62:0,63:0,64:0,65:0,66:0,67:0,68:0,69:0,70:0,71:0,72:0,73:0,74:0,75:0,76:0,77:0,78:0,79:0";"std.tec.fordpr=1"}),"") -> -12.86453295
B21: ItauUnibanco PN | D21: =IFERROR(_xll.ECONOMATICA(B10&"<XBSP>","Class"),"") -> PN | E21: =IFERROR(_xll.ECONOMATICA($B10&"<XBSP>","Volatility","12m",$D$2),"") -> 17.61097701 | F21: =IFERROR(_xll.ECONOMATICA($B10&"<XBSP>","Sharpe","12m",$D$2),"") -> 1.986022397 | G21: =IFERROR(_xll.ECONOMATICA($B10&"<XBSP>","VAR %","1y",$D$2,,,,,"false","false",,{"std.tec.ppr.per=2"}),"") -> 8.362863216 | H21: =IFERROR(_xll.ECONOMATICA($B10&"<XBSP>","Beta","60m",$D$2,,,,,"false","false"),"") -> 0.9951048098 | I21: =IFERROR(_xll.ECONOMATICA($B10&"<XBSP>","Correlation","60m",$D$2,,,,,"false","false"),"") -> 0.8118336031 | J21: =IFERROR(_xll.ECONOMATICA($B10&"<XBSP>","Number Premium","1Y",$D$2,,,,,"false","false",,{"std.tec.stt.bmk=0:6158,1:0,2:79083,3:0,4:0,5:0,6:0,7:0,8:0,9:0,10:0,11:0,12:0,13:0,14:0,15:0,16:0,17:0,18:0,19:0,20:0,21:0,22:0,23:0,24:0,25:0,26:0,27:0,28:0,29:0,30:0,31:0,";"std.tec.stt.bmk=32:0,33:0,34:0,35:0,36:0,37:0,38:0,39:0,40:0,41:0,42:0,43:0,44:0,45:0,46:0,47:0,48:0,49:0,50:0,51:0,52:0,53:0,54:0,55:0,56:0,57:0,58:0,59:0,60:0,61:0,62:0,63:0,64:0,65:0,66:0,67:0,68:0,69:0,70:0,71:0,72:0,73:0,74:0,75:0,76:0,77:0,78:0,79:0";"std.tec.dret.noprc=true"}),"") -> 11 | K21: =IFERROR(_xll.ECONOMATICA($B10&"<XBSP>","Number Premium","1Y",$D$2,,,,,"false","false",,{"std.tec.stt.bmk=0:6158,1:0,2:79083,3:0,4:0,5:0,6:0,7:0,8:0,9:0,10:0,11:0,12:0,13:0,14:0,15:0,16:0,17:0,18:0,19:0,20:0,21:0,22:0,23:0,24:0,25:0,26:0,27:0,28:0,29:0,30:0,31:0,";"std.tec.stt.bmk=32:0,33:0,34:0,35:0,36:0,37:0,38:0,39:0,40:0,41:0,42:0,43:0,44:0,45:0,46:0,47:0,48:0,49:0,50:0,51:0,52:0,53:0,54:0,55:0,56:0,57:0,58:0,59:0,60:0,61:0,62:0,63:0,64:0,65:0,66:0,67:0,68:0,69:0,70:0,71:0,72:0,73:0,74:0,75:0,76:0,77:0,78:0,79:0";"std.tec.dret.cmp=-1";"std.tec.dret.noprc=true"}),"") -> 1 | L21: =IFERROR(_xll.ECONOMATICA($B10&"<XBSP>","return",,$D$2,,,,"decimal"),"") -> 0.01272123894 | M21: =IFERROR(_xll.ECONOMATICA($B10&"<XBSP>","return","1m",$D$2,,,,"decimal"),"") -> 0.01020618524 | N21: =IFERROR(_xll.ECONOMATICA($B10&"<XBSP>","Premium","1m",$D$2,,,,,,,,{"std.tec.stt.bmk=0:6158,1:0,2:79083,3:0,4:0,5:0,6:0,7:0,8:0,9:0,10:0,11:0,12:0,13:0,14:0,15:0,16:0,17:0,18:0,19:0,20:0,21:0,22:0,23:0,24:0,25:0,26:0,27:0,28:0,29:0,30:0,31:0,";"std.tec.stt.bmk=32:0,33:0,34:0,35:0,36:0,37:0,38:0,39:0,40:0,41:0,42:0,43:0,44:0,45:0,46:0,47:0,48:0,49:0,50:0,51:0,52:0,53:0,54:0,55:0,56:0,57:0,58:0,59:0,60:0,61:0,62:0,63:0,64:0,65:0,66:0,67:0,68:0,69:0,70:0,71:0,72:0,73:0,74:0,75:0,76:0,77:0,78:0,79:0";"std.tec.fordpr=1"}),"") -> 3.854256156 | O21: =IFERROR(_xll.ECONOMATICA($B10&"<XBSP>","return","in the year",$D$2,,,,"decimal"),"") -> 0.1440081083 | P21: =IFERROR(_xll.ECONOMATICA($B10&"<XBSP>","Premium","in the year",$D$2,,,,,,,,{"tc.dft=false";"tc.tp=0";"tc.pers=4";"tc.per=0";"std.tec.stt.bmk=0:6158,1:0,2:79083,3:0,4:0,5:0,6:0,7:0,8:0,9:0,10:0,11:0,12:0,13:0,14:0,15:0,16:0,17:0,18:0,19:0,20:0,21:0,22:0,23:0,24:0,25:0,26:0,27:0,28:0,29:0,30:0,31:0,";"std.tec.stt.bmk=32:0,33:0,34:0,35:0,36:0,37:0,38:0,39:0,40:0,41:0,42:0,43:0,44:0,45:0,46:0,47:0,48:0,49:0,50:0,51:0,52:0,53:0,54:0,55:0,56:0,57:0,58:0,59:0,60:0,61:0,62:0,63:0,64:0,65:0,66:0,67:0,68:0,69:0,70:0,71:0,72:0,73:0,74:0,75:0,76:0,77:0,78:0,79:0";"std.tec.fordpr=1"}),"") -> 15.27680882 | Q21: =IFERROR(_xll.ECONOMATICA($B10&"<XBSP>","return","12m",$D$2,,,,"decimal"),"") -> 0.4752765073 | R21: =IFERROR(_xll.ECONOMATICA($B10&"<XBSP>","Premium","12m",$D$2,,,,,,,,{"tc.dft=false";"tc.tp=0";"tc.pers=4";"tc.per=0";"std.tec.stt.bmk=0:6158,1:0,2:79083,3:0,4:0,5:0,6:0,7:0,8:0,9:0,10:0,11:0,12:0,13:0,14:0,15:0,16:0,17:0,18:0,19:0,20:0,21:0,22:0,23:0,24:0,25:0,26:0,27:0,28:0,29:0,30:0,31:0,";"std.tec.stt.bmk=32:0,33:0,34:0,35:0,36:0,37:0,38:0,39:0,40:0,41:0,42:0,43:0,44:0,45:0,46:0,47:0,48:0,49:0,50:0,51:0,52:0,53:0,54:0,55:0,56:0,57:0,58:0,59:0,60:0,61:0,62:0,63:0,64:0,65:0,66:0,67:0,68:0,69:0,70:0,71:0,72:0,73:0,74:0,75:0,76:0,77:0,78:0,79:0";"std.tec.fordpr=1"}),"") -> 31.05003902
B22: Cemig PN | D22: =IFERROR(_xll.ECONOMATICA(B11&"<XBSP>","Class"),"") -> PN | E22: =IFERROR(_xll.ECONOMATICA($B11&"<XBSP>","Volatility","12m",$D$2),"") -> 27.13231168 | F22: =IFERROR(_xll.ECONOMATICA($B11&"<XBSP>","Sharpe","12m",$D$2),"") -> 1.136601976 | G22: =IFERROR(_xll.ECONOMATICA($B11&"<XBSP>","VAR %","1y",$D$2,,,,,"false","false",,{"std.tec.ppr.per=2"}),"") -> 12.80382031 | H22: =IFERROR(_xll.ECONOMATICA($B11&"<XBSP>","Beta","60m",$D$2,,,,,"false","false"),"") -> 1.011987462 | I22: =IFERROR(_xll.ECONOMATICA($B11&"<XBSP>","Correlation","60m",$D$2,,,,,"false","false"),"") -> 0.7323229485 | J22: =IFERROR(_xll.ECONOMATICA($B11&"<XBSP>","Number Premium","1Y",$D$2,,,,,"false","false",,{"std.tec.stt.bmk=0:6158,1:0,2:79083,3:0,4:0,5:0,6:0,7:0,8:0,9:0,10:0,11:0,12:0,13:0,14:0,15:0,16:0,17:0,18:0,19:0,20:0,21:0,22:0,23:0,24:0,25:0,26:0,27:0,28:0,29:0,30:0,31:0,";"std.tec.stt.bmk=32:0,33:0,34:0,35:0,36:0,37:0,38:0,39:0,40:0,41:0,42:0,43:0,44:0,45:0,46:0,47:0,48:0,49:0,50:0,51:0,52:0,53:0,54:0,55:0,56:0,57:0,58:0,59:0,60:0,61:0,62:0,63:0,64:0,65:0,66:0,67:0,68:0,69:0,70:0,71:0,72:0,73:0,74:0,75:0,76:0,77:0,78:0,79:0";"std.tec.dret.noprc=true"}),"") -> 9 | K22: =IFERROR(_xll.ECONOMATICA($B11&"<XBSP>","Number Premium","1Y",$D$2,,,,,"false","false",,{"std.tec.stt.bmk=0:6158,1:0,2:79083,3:0,4:0,5:0,6:0,7:0,8:0,9:0,10:0,11:0,12:0,13:0,14:0,15:0,16:0,17:0,18:0,19:0,20:0,21:0,22:0,23:0,24:0,25:0,26:0,27:0,28:0,29:0,30:0,31:0,";"std.tec.stt.bmk=32:0,33:0,34:0,35:0,36:0,37:0,38:0,39:0,40:0,41:0,42:0,43:0,44:0,45:0,46:0,47:0,48:0,49:0,50:0,51:0,52:0,53:0,54:0,55:0,56:0,57:0,58:0,59:0,60:0,61:0,62:0,63:0,64:0,65:0,66:0,67:0,68:0,69:0,70:0,71:0,72:0,73:0,74:0,75:0,76:0,77:0,78:0,79:0";"std.tec.dret.cmp=-1";"std.tec.dret.noprc=true"}),"") -> 3 | L22: =IFERROR(_xll.ECONOMATICA($B11&"<XBSP>","return",,$D$2,,,,"decimal"),"") -> 0.01058201058 | M22: =IFERROR(_xll.ECONOMATICA($B11&"<XBSP>","return","1m",$D$2,,,,"decimal"),"") -> 0.0110074878 | N22: =IFERROR(_xll.ECONOMATICA($B11&"<XBSP>","Premium","1m",$D$2,,,,,,,,{"std.tec.stt.bmk=0:6158,1:0,2:79083,3:0,4:0,5:0,6:0,7:0,8:0,9:0,10:0,11:0,12:0,13:0,14:0,15:0,16:0,17:0,18:0,19:0,20:0,21:0,22:0,23:0,24:0,25:0,26:0,27:0,28:0,29:0,30:0,31:0,";"std.tec.stt.bmk=32:0,33:0,34:0,35:0,36:0,37:0,38:0,39:0,40:0,41:0,42:0,43:0,44:0,45:0,46:0,47:0,48:0,49:0,50:0,51:0,52:0,53:0,54:0,55:0,56:0,57:0,58:0,59:0,60:0,61:0,62:0,63:0,64:0,65:0,66:0,67:0,68:0,69:0,70:0,71:0,72:0,73:0,74:0,75:0,76:0,77:0,78:0,79:0";"std.tec.fordpr=1"}),"") -> 3.934386412 | O22: =IFERROR(_xll.ECONOMATICA($B11&"<XBSP>","return","in the year",$D$2,,,,"decimal"),"") -> 0.4406722914 | P22: =IFERROR(_xll.ECONOMATICA($B11&"<XBSP>","Premium","in the year",$D$2,,,,,,,,{"tc.dft=false";"tc.tp=0";"tc.pers=4";"tc.per=0";"std.tec.stt.bmk=0:6158,1:0,2:79083,3:0,4:0,5:0,6:0,7:0,8:0,9:0,10:0,11:0,12:0,13:0,14:0,15:0,16:0,17:0,18:0,19:0,20:0,21:0,22:0,23:0,24:0,25:0,26:0,27:0,28:0,29:0,30:0,31:0,";"std.tec.stt.bmk=32:0,33:0,34:0,35:0,36:0,37:0,38:0,39:0,40:0,41:0,42:0,43:0,44:0,45:0,46:0,47:0,48:0,49:0,50:0,51:0,52:0,53:0,54:0,55:0,56:0,57:0,58:0,59:0,60:0,61:0,62:0,63:0,64:0,65:0,66:0,67:0,68:0,69:0,70:0,71:0,72:0,73:0,74:0,75:0,76:0,77:0,78:0,79:0";"std.tec.fordpr=1"}),"") -> 44.94322712 | Q22: =IFERROR(_xll.ECONOMATICA($B11&"<XBSP>","return","12m",$D$2,,,,"decimal"),"") -> 0.3983805231 | R22: =IFERROR(_xll.ECONOMATICA($B11&"<XBSP>","Premium","12m",$D$2,,,,,,,,{"tc.dft=false";"tc.tp=0";"tc.pers=4";"tc.per=0";"std.tec.stt.bmk=0:6158,1:0,2:79083,3:0,4:0,5:0,6:0,7:0,8:0,9:0,10:0,11:0,12:0,13:0,14:0,15:0,16:0,17:0,18:0,19:0,20:0,21:0,22:0,23:0,24:0,25:0,26:0,27:0,28:0,29:0,30:0,31:0,";"std.tec.stt.bmk=32:0,33:0,34:0,35:0,36:0,37:0,38:0,39:0,40:0,41:0,42:0,43:0,44:0,45:0,46:0,47:0,48:0,49:0,50:0,51:0,52:0,53:0,54:0,55:0,56:0,57:0,58:0,59:0,60:0,61:0,62:0,63:0,64:0,65:0,66:0,67:0,68:0,69:0,70:0,71:0,72:0,73:0,74:0,75:0,76:0,77:0,78:0,79:0";"std.tec.fordpr=1"}),"") -> 23.3604406
B23: Braskem PNA | D23: =IFERROR(_xll.ECONOMATICA(B12&"<XBSP>","Class"),"") -> PNA | E23: =IFERROR(_xll.ECONOMATICA($B12&"<XBSP>","Volatility","12m",$D$2),"") -> 46.8451457 | F23: =IFERROR(_xll.ECONOMATICA($B12&"<XBSP>","Sharpe","12m",$D$2),"") -> 0.03369346092 | G23: =IFERROR(_xll.ECONOMATICA($B12&"<XBSP>","VAR %","1y",$D$2,,,,,"false","false",,{"std.tec.ppr.per=2"}),"") -> 22.40737078 | H23: =IFERROR(_xll.ECONOMATICA($B12&"<XBSP>","Beta","60m",$D$2,,,,,"false","false"),"") -> 1.083822134 | I23: =IFERROR(_xll.ECONOMATICA($B12&"<XBSP>","Correlation","60m",$D$2,,,,,"false","false"),"") -> 0.4619370356 | J23: =IFERROR(_xll.ECONOMATICA($B12&"<XBSP>","Number Premium","1Y",$D$2,,,,,"false","false",,{"std.tec.stt.bmk=0:6158,1:0,2:79083,3:0,4:0,5:0,6:0,7:0,8:0,9:0,10:0,11:0,12:0,13:0,14:0,15:0,16:0,17:0,18:0,19:0,20:0,21:0,22:0,23:0,24:0,25:0,26:0,27:0,28:0,29:0,30:0,31:0,";"std.tec.stt.bmk=32:0,33:0,34:0,35:0,36:0,37:0,38:0,39:0,40:0,41:0,42:0,43:0,44:0,45:0,46:0,47:0,48:0,49:0,50:0,51:0,52:0,53:0,54:0,55:0,56:0,57:0,58:0,59:0,60:0,61:0,62:0,63:0,64:0,65:0,66:0,67:0,68:0,69:0,70:0,71:0,72:0,73:0,74:0,75:0,76:0,77:0,78:0,79:0";"std.tec.dret.noprc=true"}),"") -> 5 | K23: =IFERROR(_xll.ECONOMATICA($B12&"<XBSP>","Number Premium","1Y",$D$2,,,,,"false","false",,{"std.tec.stt.bmk=0:6158,1:0,2:79083,3:0,4:0,5:0,6:0,7:0,8:0,9:0,10:0,11:0,12:0,13:0,14:0,15:0,16:0,17:0,18:0,19:0,20:0,21:0,22:0,23:0,24:0,25:0,26:0,27:0,28:0,29:0,30:0,31:0,";"std.tec.stt.bmk=32:0,33:0,34:0,35:0,36:0,37:0,38:0,39:0,40:0,41:0,42:0,43:0,44:0,45:0,46:0,47:0,48:0,49:0,50:0,51:0,52:0,53:0,54:0,55:0,56:0,57:0,58:0,59:0,60:0,61:0,62:0,63:0,64:0,65:0,66:0,67:0,68:0,69:0,70:0,71:0,72:0,73:0,74:0,75:0,76:0,77:0,78:0,79:0";"std.tec.dret.cmp=-1";"std.tec.dret.noprc=true"}),"") -> 7 | L23: =IFERROR(_xll.ECONOMATICA($B12&"<XBSP>","return",,$D$2,,,,"decimal"),"") -> 0.02092675635 | M23: =IFERROR(_xll.ECONOMATICA($B12&"<XBSP>","return","1m",$D$2,,,,"decimal"),"") -> 0.1550169109 | N23: =IFERROR(_xll.ECONOMATICA($B12&"<XBSP>","Premium","1m",$D$2,,,,,,,,{"std.tec.stt.bmk=0:6158,1:0,2:79083,3:0,4:0,5:0,6:0,7:0,8:0,9:0,10:0,11:0,12:0,13:0,14:0,15:0,16:0,17:0,18:0,19:0,20:0,21:0,22:0,23:0,24:0,25:0,26:0,27:0,28:0,29:0,30:0,31:0,";"std.tec.stt.bmk=32:0,33:0,34:0,35:0,36:0,37:0,38:0,39:0,40:0,41:0,42:0,43:0,44:0,45:0,46:0,47:0,48:0,49:0,50:0,51:0,52:0,53:0,54:0,55:0,56:0,57:0,58:0,59:0,60:0,61:0,62:0,63:0,64:0,65:0,66:0,67:0,68:0,69:0,70:0,71:0,72:0,73:0,74:0,75:0,76:0,77:0,78:0,79:0";"std.tec.fordpr=1"}),"") -> 18.33532873 | O23: =IFERROR(_xll.ECONOMATICA($B12&"<XBSP>","return","in the year",$D$2,,,,"decimal"),"") -> -0.0626715462 | P23: =IFERROR(_xll.ECONOMATICA($B12&"<XBSP>","Premium","in the year",$D$2,,,,,,,,{"tc.dft=false";"tc.tp=0";"tc.pers=4";"tc.per=0";"std.tec.stt.bmk=0:6158,1:0,2:79083,3:0,4:0,5:0,6:0,7:0,8:0,9:0,10:0,11:0,12:0,13:0,14:0,15:0,16:0,17:0,18:0,19:0,20:0,21:0,22:0,23:0,24:0,25:0,26:0,27:0,28:0,29:0,30:0,31:0,";"std.tec.stt.bmk=32:0,33:0,34:0,35:0,36:0,37:0,38:0,39:0,40:0,41:0,42:0,43:0,44:0,45:0,46:0,47:0,48:0,49:0,50:0,51:0,52:0,53:0,54:0,55:0,56:0,57:0,58:0,59:0,60:0,61:0,62:0,63:0,64:0,65:0,66:0,67:0,68:0,69:0,70:0,71:0,72:0,73:0,74:0,75:0,76:0,77:0,78:0,79:0";"std.tec.fordpr=1"}),"") -> -5.391156634 | Q23: =IFERROR(_xll.ECONOMATICA($B12&"<XBSP>","return","12m",$D$2,,,,"decimal"),"") -> 0.01085347805 | R23: =IFERROR(_xll.ECONOMATICA($B12&"<XBSP>","Premium","12m",$D$2,,,,,,,,{"tc.dft=false";"tc.tp=0";"tc.pers=4";"tc.per=0";"std.tec.stt.bmk=0:6158,1:0,2:79083,3:0,4:0,5:0,6:0,7:0,8:0,9:0,10:0,11:0,12:0,13:0,14:0,15:0,16:0,17:0,18:0,19:0,20:0,21:0,22:0,23:0,24:0,25:0,26:0,27:0,28:0,29:0,30:0,31:0,";"std.tec.stt.bmk=32:0,33:0,34:0,35:0,36:0,37:0,38:0,39:0,40:0,41:0,42:0,43:0,44:0,45:0,46:0,47:0,48:0,49:0,50:0,51:0,52:0,53:0,54:0,55:0,56:0,57:0,58:0,59:0,60:0,61:0,62:0,63:0,64:0,65:0,66:0,67:0,68:0,69:0,70:0,71:0,72:0,73:0,74:0,75:0,76:0,77:0,78:0,79:0";"std.tec.fordpr=1"}),"") -> -15.39226391
B24: Sabesp ON | D24: =IFERROR(_xll.ECONOMATICA(B13&"<XBSP>","Class"),"") -> ON | E24: =IFERROR(_xll.ECONOMATICA($B13&"<XBSP>","Volatility","12m",$D$2),"") -> 22.94462316 | F24: =IFERROR(_xll.ECONOMATICA($B13&"<XBSP>","Sharpe","12m",$D$2),"") -> 1.885791663 | G24: =IFERROR(_xll.ECONOMATICA($B13&"<XBSP>","VAR %","1y",$D$2,,,,,"false","false",,{"std.tec.ppr.per=2"}),"") -> 10.90298153 | H24: =IFERROR(_xll.ECONOMATICA($B13&"<XBSP>","Beta","60m",$D$2,,,,,"false","false"),"") -> 0.9987871866 | I24: =IFERROR(_xll.ECONOMATICA($B13&"<XBSP>","Correlation","60m",$D$2,,,,,"false","false"),"") -> 0.6486946184 | J24: =IFERROR(_xll.ECONOMATICA($B13&"<XBSP>","Number Premium","1Y",$D$2,,,,,"false","false",,{"std.tec.stt.bmk=0:6158,1:0,2:79083,3:0,4:0,5:0,6:0,7:0,8:0,9:0,10:0,11:0,12:0,13:0,14:0,15:0,16:0,17:0,18:0,19:0,20:0,21:0,22:0,23:0,24:0,25:0,26:0,27:0,28:0,29:0,30:0,31:0,";"std.tec.stt.bmk=32:0,33:0,34:0,35:0,36:0,37:0,38:0,39:0,40:0,41:0,42:0,43:0,44:0,45:0,46:0,47:0,48:0,49:0,50:0,51:0,52:0,53:0,54:0,55:0,56:0,57:0,58:0,59:0,60:0,61:0,62:0,63:0,64:0,65:0,66:0,67:0,68:0,69:0,70:0,71:0,72:0,73:0,74:0,75:0,76:0,77:0,78:0,79:0";"std.tec.dret.noprc=true"}),"") -> 7 | K24: =IFERROR(_xll.ECONOMATICA($B13&"<XBSP>","Number Premium","1Y",$D$2,,,,,"false","false",,{"std.tec.stt.bmk=0:6158,1:0,2:79083,3:0,4:0,5:0,6:0,7:0,8:0,9:0,10:0,11:0,12:0,13:0,14:0,15:0,16:0,17:0,18:0,19:0,20:0,21:0,22:0,23:0,24:0,25:0,26:0,27:0,28:0,29:0,30:0,31:0,";"std.tec.stt.bmk=32:0,33:0,34:0,35:0,36:0,37:0,38:0,39:0,40:0,41:0,42:0,43:0,44:0,45:0,46:0,47:0,48:0,49:0,50:0,51:0,52:0,53:0,54:0,55:0,56:0,57:0,58:0,59:0,60:0,61:0,62:0,63:0,64:0,65:0,66:0,67:0,68:0,69:0,70:0,71:0,72:0,73:0,74:0,75:0,76:0,77:0,78:0,79:0";"std.tec.dret.cmp=-1";"std.tec.dret.noprc=true"}),"") -> 5 | L24: =IFERROR(_xll.ECONOMATICA($B13&"<XBSP>","return",,$D$2,,,,"decimal"),"") -> -0.002729257641 | M24: =IFERROR(_xll.ECONOMATICA($B13&"<XBSP>","return","1m",$D$2,,,,"decimal"),"") -> -0.05238589212 | N24: =IFERROR(_xll.ECONOMATICA($B13&"<XBSP>","Premium","1m",$D$2,,,,,,,,{"std.tec.stt.bmk=0:6158,1:0,2:79083,3:0,4:0,5:0,6:0,7:0,8:0,9:0,10:0,11:0,12:0,13:0,14:0,15:0,16:0,17:0,18:0,19:0,20:0,21:0,22:0,23:0,24:0,25:0,26:0,27:0,28:0,29:0,30:0,31:0,";"std.tec.stt.bmk=32:0,33:0,34:0,35:0,36:0,37:0,38:0,39:0,40:0,41:0,42:0,43:0,44:0,45:0,46:0,47:0,48:0,49:0,50:0,51:0,52:0,53:0,54:0,55:0,56:0,57:0,58:0,59:0,60:0,61:0,62:0,63:0,64:0,65:0,66:0,67:0,68:0,69:0,70:0,71:0,72:0,73:0,74:0,75:0,76:0,77:0,78:0,79:0";"std.tec.fordpr=1"}),"") -> -2.40495158 | O24: =IFERROR(_xll.ECONOMATICA($B13&"<XBSP>","return","in the year",$D$2,,,,"decimal"),"") -> 0.2335392881 | P24: =IFERROR(_xll.ECONOMATICA($B13&"<XBSP>","Premium","in the year",$D$2,,,,,,,,{"tc.dft=false";"tc.tp=0";"tc.pers=4";"tc.per=0";"std.tec.stt.bmk=0:6158,1:0,2:79083,3:0,4:0,5:0,6:0,7:0,8:0,9:0,10:0,11:0,12:0,13:0,14:0,15:0,16:0,17:0,18:0,19:0,20:0,21:0,22:0,23:0,24:0,25:0,26:0,27:0,28:0,29:0,30:0,31:0,";"std.tec.stt.bmk=32:0,33:0,34:0,35:0,36:0,37:0,38:0,39:0,40:0,41:0,42:0,43:0,44:0,45:0,46:0,47:0,48:0,49:0,50:0,51:0,52:0,53:0,54:0,55:0,56:0,57:0,58:0,59:0,60:0,61:0,62:0,63:0,64:0,65:0,66:0,67:0,68:0,69:0,70:0,71:0,72:0,73:0,74:0,75:0,76:0,77:0,78:0,79:0";"std.tec.fordpr=1"}),"") -> 24.22992679 | Q24: =IFERROR(_xll.ECONOMATICA($B13&"<XBSP>","return","12m",$D$2,,,,"decimal"),"") -> 0.5492727236 | R24: =IFERROR(_xll.ECONOMATICA($B13&"<XBSP>","Premium","12m",$D$2,,,,,,,,{"tc.dft=false";"tc.tp=0";"tc.pers=4";"tc.per=0";"std.tec.stt.bmk=0:6158,1:0,2:79083,3:0,4:0,5:0,6:0,7:0,8:0,9:0,10:0,11:0,12:0,13:0,14:0,15:0,16:0,17:0,18:0,19:0,20:0,21:0,22:0,23:0,24:0,25:0,26:0,27:0,28:0,29:0,30:0,31:0,";"std.tec.stt.bmk=32:0,33:0,34:0,35:0,36:0,37:0,38:0,39:0,40:0,41:0,42:0,43:0,44:0,45:0,46:0,47:0,48:0,49:0,50:0,51:0,52:0,53:0,54:0,55:0,56:0,57:0,58:0,59:0,60:0,61:0,62:0,63:0,64:0,65:0,66:0,67:0,68:0,69:0,70:0,71:0,72:0,73:0,74:0,75:0,76:0,77:0,78:0,79:0";"std.tec.fordpr=1"}),"") -> 38.44966064
B25: B3 ON | D25: =IFERROR(_xll.ECONOMATICA(B14&"<XBSP>","Class"),"") -> ON | E25: =IFERROR(_xll.ECONOMATICA($B14&"<XBSP>","Volatility","12m",$D$2),"") -> 29.36364446 | F25: =IFERROR(_xll.ECONOMATICA($B14&"<XBSP>","Sharpe","12m",$D$2),"") -> -0.4321315654 | G25: =IFERROR(_xll.ECONOMATICA($B14&"<XBSP>","VAR %","1y",$D$2,,,,,"false","false",,{"std.tec.ppr.per=2"}),"") -> 13.9171415 | H25: =IFERROR(_xll.ECONOMATICA($B14&"<XBSP>","Beta","60m",$D$2,,,,,"false","false"),"") -> 1.12282839 | I25: =IFERROR(_xll.ECONOMATICA($B14&"<XBSP>","Correlation","60m",$D$2,,,,,"false","false"),"") -> 0.7434801613 | J25: =IFERROR(_xll.ECONOMATICA($B14&"<XBSP>","Number Premium","1Y",$D$2,,,,,"false","false",,{"std.tec.stt.bmk=0:6158,1:0,2:79083,3:0,4:0,5:0,6:0,7:0,8:0,9:0,10:0,11:0,12:0,13:0,14:0,15:0,16:0,17:0,18:0,19:0,20:0,21:0,22:0,23:0,24:0,25:0,26:0,27:0,28:0,29:0,30:0,31:0,";"std.tec.stt.bmk=32:0,33:0,34:0,35:0,36:0,37:0,38:0,39:0,40:0,41:0,42:0,43:0,44:0,45:0,46:0,47:0,48:0,49:0,50:0,51:0,52:0,53:0,54:0,55:0,56:0,57:0,58:0,59:0,60:0,61:0,62:0,63:0,64:0,65:0,66:0,67:0,68:0,69:0,70:0,71:0,72:0,73:0,74:0,75:0,76:0,77:0,78:0,79:0";"std.tec.dret.noprc=true"}),"") -> 5 | K25: =IFERROR(_xll.ECONOMATICA($B14&"<XBSP>","Number Premium","1Y",$D$2,,,,,"false","false",,{"std.tec.stt.bmk=0:6158,1:0,2:79083,3:0,4:0,5:0,6:0,7:0,8:0,9:0,10:0,11:0,12:0,13:0,14:0,15:0,16:0,17:0,18:0,19:0,20:0,21:0,22:0,23:0,24:0,25:0,26:0,27:0,28:0,29:0,30:0,31:0,";"std.tec.stt.bmk=32:0,33:0,34:0,35:0,36:0,37:0,38:0,39:0,40:0,41:0,42:0,43:0,44:0,45:0,46:0,47:0,48:0,49:0,50:0,51:0,52:0,53:0,54:0,55:0,56:0,57:0,58:0,59:0,60:0,61:0,62:0,63:0,64:0,65:0,66:0,67:0,68:0,69:0,70:0,71:0,72:0,73:0,74:0,75:0,76:0,77:0,78:0,79:0";"std.tec.dret.cmp=-1";"std.tec.dret.noprc=true"}),"") -> 7 | L25: =IFERROR(_xll.ECONOMATICA($B14&"<XBSP>","return",,$D$2,,,,"decimal"),"") -> 0.005560704358 | M25: =IFERROR(_xll.ECONOMATICA($B14&"<XBSP>","return","1m",$D$2,,,,"decimal"),"") -> -0.1450741353 | N25: =IFERROR(_xll.ECONOMATICA($B14&"<XBSP>","Premium","1m",$D$2,,,,,,,,{"std.tec.stt.bmk=0:6158,1:0,2:79083,3:0,4:0,5:0,6:0,7:0,8:0,9:0,10:0,11:0,12:0,13:0,14:0,15:0,16:0,17:0,18:0,19:0,20:0,21:0,22:0,23:0,24:0,25:0,26:0,27:0,28:0,29:0,30:0,31:0,";"std.tec.stt.bmk=32:0,33:0,34:0,35:0,36:0,37:0,38:0,39:0,40:0,41:0,42:0,43:0,44:0,45:0,46:0,47:0,48:0,49:0,50:0,51:0,52:0,53:0,54:0,55:0,56:0,57:0,58:0,59:0,60:0,61:0,62:0,63:0,64:0,65:0,66:0,67:0,68:0,69:0,70:0,71:0,72:0,73:0,74:0,75:0,76:0,77:0,78:0,79:0";"std.tec.fordpr=1"}),"") -> -11.6737759 | O25: =IFERROR(_xll.ECONOMATICA($B14&"<XBSP>","return","in the year",$D$2,,,,"decimal"),"") -> -0.2290475114 | P25: =IFERROR(_xll.ECONOMATICA($B14&"<XBSP>","Premium","in the year",$D$2,,,,,,,,{"tc.dft=false";"tc.tp=0";"tc.pers=4";"tc.per=0";"std.tec.stt.bmk=0:6158,1:0,2:79083,3:0,4:0,5:0,6:0,7:0,8:0,9:0,10:0,11:0,12:0,13:0,14:0,15:0,16:0,17:0,18:0,19:0,20:0,21:0,22:0,23:0,24:0,25:0,26:0,27:0,28:0,29:0,30:0,31:0,";"std.tec.stt.bmk=32:0,33:0,34:0,35:0,36:0,37:0,38:0,39:0,40:0,41:0,42:0,43:0,44:0,45:0,46:0,47:0,48:0,49:0,50:0,51:0,52:0,53:0,54:0,55:0,56:0,57:0,58:0,59:0,60:0,61:0,62:0,63:0,64:0,65:0,66:0,67:0,68:0,69:0,70:0,71:0,72:0,73:0,74:0,75:0,76:0,77:0,78:0,79:0";"std.tec.fordpr=1"}),"") -> -22.02875316 | Q25: =IFERROR(_xll.ECONOMATICA($B14&"<XBSP>","return","12m",$D$2,,,,"decimal"),"") -> -0.07064136629 | R25: =IFERROR(_xll.ECONOMATICA($B14&"<XBSP>","Premium","12m",$D$2,,,,,,,,{"tc.dft=false";"tc.tp=0";"tc.pers=4";"tc.per=0";"std.tec.stt.bmk=0:6158,1:0,2:79083,3:0,4:0,5:0,6:0,7:0,8:0,9:0,10:0,11:0,12:0,13:0,14:0,15:0,16:0,17:0,18:0,19:0,20:0,21:0,22:0,23:0,24:0,25:0,26:0,27:0,28:0,29:0,30:0,31:0,";"std.tec.stt.bmk=32:0,33:0,34:0,35:0,36:0,37:0,38:0,39:0,40:0,41:0,42:0,43:0,44:0,45:0,46:0,47:0,48:0,49:0,50:0,51:0,52:0,53:0,54:0,55:0,56:0,57:0,58:0,59:0,60:0,61:0,62:0,63:0,64:0,65:0,66:0,67:0,68:0,69:0,70:0,71:0,72:0,73:0,74:0,75:0,76:0,77:0,78:0,79:0";"std.tec.fordpr=1"}),"") -> -23.54174834
B26: IBOV | C26: ← Selecione Um Índice | E26: =IFERROR(_xll.ECONOMATICA($B$26,"Volatility","12m",$D$2),"") -> 12.6936031 | F26: =IFERROR(_xll.ECONOMATICA($B$26,"Sharpe","12m",$D$2),"") -> 0.4518377445 | G26: =IFERROR(_xll.ECONOMATICA($B26&"<XBSP>","VAR %","1Y",$D$2,,,,,"false","false",,{"std.tec.ppr.per=2"}),"") -> 6.018627058 | H26: =IFERROR(_xll.ECONOMATICA($B26&"<XBSP>","Beta","60m",$D$2,,,,,"false","false"),"") -> 1 | I26: =IFERROR(_xll.ECONOMATICA($B26&"<XBSP>","Correlation","60m",$D$2,,,,,"false","false"),"") -> 1 | J26: =IFERROR(_xll.ECONOMATICA($B26&"<XBSP>","Number Premium","1Y",$D$2,,,,,"false","false",,{"std.tec.stt.bmk=0:6158,1:0,2:79083,3:0,4:0,5:0,6:0,7:0,8:0,9:0,10:0,11:0,12:0,13:0,14:0,15:0,16:0,17:0,18:0,19:0,20:0,21:0,22:0,23:0,24:0,25:0,26:0,27:0,28:0,29:0,30:0,31:0,";"std.tec.stt.bmk=32:0,33:0,34:0,35:0,36:0,37:0,38:0,39:0,40:0,41:0,42:0,43:0,44:0,45:0,46:0,47:0,48:0,49:0,50:0,51:0,52:0,53:0,54:0,55:0,56:0,57:0,58:0,59:0,60:0,61:0,62:0,63:0,64:0,65:0,66:0,67:0,68:0,69:0,70:0,71:0,72:0,73:0,74:0,75:0,76:0,77:0,78:0,79:0";"std.tec.dret.noprc=true"}),"") -> 0 | K26: =IFERROR(_xll.ECONOMATICA($B26&"<XBSP>","Number Premium","1Y",$D$2,,,,,"false","false",,{"std.tec.stt.bmk=0:6158,1:0,2:79083,3:0,4:0,5:0,6:0,7:0,8:0,9:0,10:0,11:0,12:0,13:0,14:0,15:0,16:0,17:0,18:0,19:0,20:0,21:0,22:0,23:0,24:0,25:0,26:0,27:0,28:0,29:0,30:0,31:0,";"std.tec.stt.bmk=32:0,33:0,34:0,35:0,36:0,37:0,38:0,39:0,40:0,41:0,42:0,43:0,44:0,45:0,46:0,47:0,48:0,49:0,50:0,51:0,52:0,53:0,54:0,55:0,56:0,57:0,58:0,59:0,60:0,61:0,62:0,63:0,64:0,65:0,66:0,67:0,68:0,69:0,70:0,71:0,72:0,73:0,74:0,75:0,76:0,77:0,78:0,79:0";"std.tec.dret.cmp=-1";"std.tec.dret.noprc=true"}),"") -> 0 | L26: =IFERROR(_xll.ECONOMATICA($B26&"<XBSP>","return",,$D$2,,,,"decimal"),"") -> 0.01081669123 | M26: =IFERROR(_xll.ECONOMATICA($B26&"<XBSP>","return","1m",$D$2,,,,"decimal"),"") -> -0.02833637632 | N26: =IFERROR(_xll.ECONOMATICA($B26&"<XBSP>","Premium","1m",$D$2,,,,,,,,{"std.tec.stt.bmk=0:6158,1:0,2:79083,3:0,4:0,5:0,6:0,7:0,8:0,9:0,10:0,11:0,12:0,13:0,14:0,15:0,16:0,17:0,18:0,19:0,20:0,21:0,22:0,23:0,24:0,25:0,26:0,27:0,28:0,29:0,30:0,31:0,";"std.tec.stt.bmk=32:0,33:0,34:0,35:0,36:0,37:0,38:0,39:0,40:0,41:0,42:0,43:0,44:0,45:0,46:0,47:0,48:0,49:0,50:0,51:0,52:0,53:0,54:0,55:0,56:0,57:0,58:0,59:0,60:0,61:0,62:0,63:0,64:0,65:0,66:0,67:0,68:0,69:0,70:0,71:0,72:0,73:0,74:0,75:0,76:0,77:0,78:0,79:0";"std.tec.fordpr=1"}),"") -> 0 | O26: =IFERROR(_xll.ECONOMATICA($B26&"<XBSP>","return","in the year",$D$2,,,,"decimal"),"") -> -0.008759979861 | P26: =IFERROR(_xll.ECONOMATICA($B26&"<XBSP>","Premium","in the year",$D$2,,,,,,,,{"tc.dft=false";"tc.tp=0";"tc.pers=4";"tc.per=0";"std.tec.stt.bmk=0:6158,1:0,2:79083,3:0,4:0,5:0,6:0,7:0,8:0,9:0,10:0,11:0,12:0,13:0,14:0,15:0,16:0,17:0,18:0,19:0,20:0,21:0,22:0,23:0,24:0,25:0,26:0,27:0,28:0,29:0,30:0,31:0,";"std.tec.stt.bmk=32:0,33:0,34:0,35:0,36:0,37:0,38:0,39:0,40:0,41:0,42:0,43:0,44:0,45:0,46:0,47:0,48:0,49:0,50:0,51:0,52:0,53:0,54:0,55:0,56:0,57:0,58:0,59:0,60:0,61:0,62:0,63:0,64:0,65:0,66:0,67:0,68:0,69:0,70:0,71:0,72:0,73:0,74:0,75:0,76:0,77:0,78:0,79:0";"std.tec.fordpr=1"}),"") -> 0 | Q26: =IFERROR(_xll.ECONOMATICA($B26&"<XBSP>","return","12m",$D$2,,,,"decimal"),"") -> 0.1647761172 | R26: =IFERROR(_xll.ECONOMATICA($B26&"<XBSP>","Premium","12m",$D$2,,,,,,,,{"tc.dft=false";"tc.tp=0";"tc.pers=4";"tc.per=0";"std.tec.stt.bmk=0:6158,1:0,2:79083,3:0,4:0,5:0,6:0,7:0,8:0,9:0,10:0,11:0,12:0,13:0,14:0,15:0,16:0,17:0,18:0,19:0,20:0,21:0,22:0,23:0,24:0,25:0,26:0,27:0,28:0,29:0,30:0,31:0,";"std.tec.stt.bmk=32:0,33:0,34:0,35:0,36:0,37:0,38:0,39:0,40:0,41:0,42:0,43:0,44:0,45:0,46:0,47:0,48:0,49:0,50:0,51:0,52:0,53:0,54:0,55:0,56:0,57:0,58:0,59:0,60:0,61:0,62:0,63:0,64:0,65:0,66:0,67:0,68:0,69:0,70:0,71:0,72:0,73:0,74:0,75:0,76:0,77:0,78:0,79:0";"std.tec.fordpr=1"}),"") -> 0
B28: Múltiplos e Indicadores - 12 meses | O28: Digitar uma Data de Preferência para o Balanço → | P28: Data do Balanço:
B29: Nome | C29: Classe | D29: Data da Última Cotação | E29: Valor de Mercado | F29: P / VPA | G29: P / L | H29: Dividend Yield 12M | I29: Dividendos por Ação 12M | J29: Data do Balanço | K29: Lucro Líquido | L29: Margem Líquida | M29: LPA | N29: VPA | O29: ROE | P29: ROA | Q29: Liquidez Geral | R29: Liquidez Corrente
B30: =C7 -> Petrobras ON | C30: =IFERROR(_xll.ECONOMATICA($B7&"<XBSP>","Class"),"") -> ON | D30: =IFERROR(_xll.ECONOMATICA($B7&"<XBSP>","Date of Last Quote"),"") -> 2024-09-26 | E30: =IFERROR(_xll.ECONOMATICA($B7&"<XBSP>","MarketCapitaliz","12m",$D$2),"") -> 492743416230 | F30: =IFERROR(_xll.ECONOMATICA($B7&"<XBSP>","P/BV","12m",$D$2),"") -> 1.369353875 | G30: =IFERROR(_xll.ECONOMATICA($B7&"<XBSP>","P/E","12m",$D$2),"") -> 6.537749091 | H30: =IFERROR(_xll.ECONOMATICA($B7&"<XBSP>","Div Yld (start)","12m",$D$2,,,,"decimal"),"") -> 0.1751811791 | I30: =IFERROR(_xll.ECONOMATICA($B7&"<XBSP>","Divid per Share","12m",$D$2),"") -> 6.36783586 | J30: =IFERROR(_xll.ECONOMATICA($B7&"<XBSP>","Fin Statm Date",,IF($R$28="","latest",$R$28)),"") -> 2024-06-30 | K30: =IFERROR(_xll.ECONOMATICA($B7&"<XBSP>","Net Income","12m",IF($R$28="","latest",$R$28)),"") -> 78763000000 | L30: =IFERROR(_xll.ECONOMATICA($B7&"<XBSP>","Net Margin","12m",IF($R$28="","latest",$R$28),,,,"decimal"),"") -> 0.1587328304 | M30: =IFERROR(_xll.ECONOMATICA($B7&"<XBSP>","EPS","12m",IF($R$28="","latest",$R$28)),"") -> 6.069367216 | N30: =IFERROR(_xll.ECONOMATICA($B7&"<XBSP>","BVperShare",,IF($R$28="","latest",$R$28)),"") -> 28.97716998 | O30: =IFERROR(_xll.ECONOMATICA($B7&"<XBSP>","ROE (avg)","12m",IF($R$28="","latest",$R$28),,,,"decimal"),"") -> 0.2117219749 | P30: =IFERROR(_xll.ECONOMATICA($B7&"<XBSP>","ROA","12m",IF($R$28="","latest",$R$28),,,,"decimal"),"") -> 0.0748265778 | Q30: =IFERROR(_xll.ECONOMATICA($B7&"<XBSP>","LiquidRatio",,IF($R$28="","latest",$R$28)),"") -> 0.413867762 | R30: =IFERROR(_xll.ECONOMATICA($B7&"<XBSP>","CurrRatio",,IF($R$28="","latest",$R$28)),"") -> 0.8951408087
B31: Vale ON | C31: =IFERROR(_xll.ECONOMATICA($B8&"<XBSP>","Class"),"") -> ON | D31: =IFERROR(_xll.ECONOMATICA($B8&"<XBSP>","Date of Last Quote"),"") -> 2024-09-26 | E31: =IFERROR(_xll.ECONOMATICA($B8&"<XBSP>","MarketCapitaliz","12m",$D$2),"") -> 274405518520 | F31: =IFERROR(_xll.ECONOMATICA($B8&"<XBSP>","P/BV","12m",$D$2),"") -> 1.335625126 | G31: =IFERROR(_xll.ECONOMATICA($B8&"<XBSP>","P/E","12m",$D$2),"") -> 5.678192736 | H31: =IFERROR(_xll.ECONOMATICA($B8&"<XBSP>","Div Yld (start)","12m",$D$2,,,,"decimal"),"") -> 0.1092740708 | I31: =IFERROR(_xll.ECONOMATICA($B8&"<XBSP>","Divid per Share","12m",$D$2),"") -> 7.164008083 | J31: =IFERROR(_xll.ECONOMATICA($B8&"<XBSP>","Fin Statm Date",,IF($R$28="","latest",$R$28)),"") -> 2024-06-30 | K31: =IFERROR(_xll.ECONOMATICA($B8&"<XBSP>","Net Income","12m",IF($R$28="","latest",$R$28)),"") -> 48729000000 | L31: =IFERROR(_xll.ECONOMATICA($B8&"<XBSP>","Net Margin","12m",IF($R$28="","latest",$R$28),,,,"decimal"),"") -> 0.2331634086 | M31: =IFERROR(_xll.ECONOMATICA($B8&"<XBSP>","EPS","12m",IF($R$28="","latest",$R$28)),"") -> 11.31522 | N31: =IFERROR(_xll.ECONOMATICA($B8&"<XBSP>","BVperShare",,IF($R$28="","latest",$R$28)),"") -> 48.10481531 | O31: =IFERROR(_xll.ECONOMATICA($B8&"<XBSP>","ROE (avg)","12m",IF($R$28="","latest",$R$28),,,,"decimal"),"") -> 0.2404692946 | P31: =IFERROR(_xll.ECONOMATICA($B8&"<XBSP>","ROA","12m",IF($R$28="","latest",$R$28),,,,"decimal"),"") -> 0.101739833 | Q31: =IFERROR(_xll.ECONOMATICA($B8&"<XBSP>","LiquidRatio",,IF($R$28="","latest",$R$28)),"") -> 0.5829508123 | R31: =IFERROR(_xll.ECONOMATICA($B8&"<XBSP>","CurrRatio",,IF($R$28="","latest",$R$28)),"") -> 1.079186794
B32: Ambev S/A ON | C32: =IFERROR(_xll.ECONOMATICA($B9&"<XBSP>","Class"),"") -> ON | D32: =IFERROR(_xll.ECONOMATICA($B9&"<XBSP>","Date of Last Quote"),"") -> 2024-09-26 | E32: =IFERROR(_xll.ECONOMATICA($B9&"<XBSP>","MarketCapitaliz","12m",$D$2),"") -> 201924176880 | F32: =IFERROR(_xll.ECONOMATICA($B9&"<XBSP>","P/BV","12m",$D$2),"") -> 2.119654553 | G32: =IFERROR(_xll.ECONOMATICA($B9&"<XBSP>","P/E","12m",$D$2),"") -> 14.04465971 | H32: =IFERROR(_xll.ECONOMATICA($B9&"<XBSP>","Div Yld (start)","12m",$D$2,,,,"decimal"),"") -> 0.05599693252 | I32: =IFERROR(_xll.ECONOMATICA($B9&"<XBSP>","Divid per Share","12m",$D$2),"") -> 0.7302 | J32: =IFERROR(_xll.ECONOMATICA($B9&"<XBSP>","Fin Statm Date",,IF($R$28="","latest",$R$28)),"") -> 2024-06-30 | K32: =IFERROR(_xll.ECONOMATICA($B9&"<XBSP>","Net Income","12m",IF($R$28="","latest",$R$28)),"") -> 14395980000 | L32: =IFERROR(_xll.ECONOMATICA($B9&"<XBSP>","Net Margin","12m",IF($R$28="","latest",$R$28),,,,"decimal"),"") -> 0.1835542213 | M32: =IFERROR(_xll.ECONOMATICA($B9&"<XBSP>","EPS","12m",IF($R$28="","latest",$R$28)),"") -> 0.9142264938 | N32: =IFERROR(_xll.ECONOMATICA($B9&"<XBSP>","BVperShare",,IF($R$28="","latest",$R$28)),"") -> 6.057590838 | O32: =IFERROR(_xll.ECONOMATICA($B9&"<XBSP>","ROE (avg)","12m",IF($R$28="","latest",$R$28),,,,"decimal"),"") -> 0.1622742616 | P32: =IFERROR(_xll.ECONOMATICA($B9&"<XBSP>","ROA","12m",IF($R$28="","latest",$R$28),,,,"decimal"),"") -> 0.1031765133 | Q32: =IFERROR(_xll.ECONOMATICA($B9&"<XBSP>","LiquidRatio",,IF($R$28="","latest",$R$28)),"") -> 1.273797476 | R32: =IFERROR(_xll.ECONOMATICA($B9&"<XBSP>","CurrRatio",,IF($R$28="","latest",$R$28)),"") -> 1.106827314
B33: ItauUnibanco PN | C33: =IFERROR(_xll.ECONOMATICA($B10&"<XBSP>","Class"),"") -> PN | D33: =IFERROR(_xll.ECONOMATICA($B10&"<XBSP>","Date of Last Quote"),"") -> 2024-09-26 | E33: =IFERROR(_xll.ECONOMATICA($B10&"<XBSP>","MarketCapitaliz","12m",$D$2),"") -> 335047531640 | F33: =IFERROR(_xll.ECONOMATICA($B10&"<XBSP>","P/BV","12m",$D$2),"") -> 1.951157905 | G33: =IFERROR(_xll.ECONOMATICA($B10&"<XBSP>","P/E","12m",$D$2),"") -> 9.918867079 | H33: =IFERROR(_xll.ECONOMATICA($B10&"<XBSP>","Div Yld (start)","12m",$D$2,,,,"decimal"),"") -> 0.08834379699 | I33: =IFERROR(_xll.ECONOMATICA($B10&"<XBSP>","Divid per Share","12m",$D$2),"") -> 2.349945 | J33: =IFERROR(_xll.ECONOMATICA($B10&"<XBSP>","Fin Statm Date",,IF($R$28="","latest",$R$28)),"") -> 2024-06-30 | K33: =IFERROR(_xll.ECONOMATICA($B10&"<XBSP>","Net Income","12m",IF($R$28="","latest",$R$28)),"") -> 36189000000 | L33: =IFERROR(_xll.ECONOMATICA($B10&"<XBSP>","Net Margin","12m",IF($R$28="","latest",$R$28),,,,"decimal"),"") -> 0.1235344868 | M33: =IFERROR(_xll.ECONOMATICA($B10&"<XBSP>","EPS","12m",IF($R$28="","latest",$R$28)),"") -> 3.6919539 | N33: =IFERROR(_xll.ECONOMATICA($B10&"<XBSP>","BVperShare",,IF($R$28="","latest",$R$28)),"") -> 18.76834258 | O33: =IFERROR(_xll.ECONOMATICA($B10&"<XBSP>","ROE (avg)","12m",IF($R$28="","latest",$R$28),,,,"decimal"),"") -> 0.1994643802 | P33: =IFERROR(_xll.ECONOMATICA($B10&"<XBSP>","ROA","12m",IF($R$28="","latest",$R$28),,,,"decimal"),"") -> 0.01259961221 | Q33: =IFERROR(_xll.ECONOMATICA($B10&"<XBSP>","LiquidRatio",,IF($R$28="","latest",$R$28)),"") ->  | R33: =IFERROR(_xll.ECONOMATICA($B10&"<XBSP>","CurrRatio",,IF($R$28="","latest",$R$28)),"") -> 
B34: Cemig PN | C34: =IFERROR(_xll.ECONOMATICA($B11&"<XBSP>","Class"),"") -> PN | D34: =IFERROR(_xll.ECONOMATICA($B11&"<XBSP>","Date of Last Quote"),"") -> 2024-09-26 | E34: =IFERROR(_xll.ECONOMATICA($B11&"<XBSP>","MarketCapitaliz","12m",$D$2),"") -> 35517395160 | F34: =IFERROR(_xll.ECONOMATICA($B11&"<XBSP>","P/BV","12m",$D$2),"") -> 1.229024135 | G34: =IFERROR(_xll.ECONOMATICA($B11&"<XBSP>","P/E","12m",$D$2),"") -> 5.49832868 | H34: =IFERROR(_xll.ECONOMATICA($B11&"<XBSP>","Div Yld (start)","12m",$D$2,,,,"decimal"),"") -> 0.1661988432 | I34: =IFERROR(_xll.ECONOMATICA($B11&"<XBSP>","Divid per Share","12m",$D$2),"") -> 1.595508894 | J34: =IFERROR(_xll.ECONOMATICA($B11&"<XBSP>","Fin Statm Date",,IF($R$28="","latest",$R$28)),"") -> 2024-06-30 | K34: =IFERROR(_xll.ECONOMATICA($B11&"<XBSP>","Net Income","12m",IF($R$28="","latest",$R$28)),"") -> 5962433000 | L34: =IFERROR(_xll.ECONOMATICA($B11&"<XBSP>","Net Margin","12m",IF($R$28="","latest",$R$28),,,,"decimal"),"") -> 0.1574754272 | M34: =IFERROR(_xll.ECONOMATICA($B11&"<XBSP>","EPS","12m",IF($R$28="","latest",$R$28)),"") -> 2.084269724 | N34: =IFERROR(_xll.ECONOMATICA($B11&"<XBSP>","BVperShare",,IF($R$28="","latest",$R$28)),"") -> 9.324471075 | O34: =IFERROR(_xll.ECONOMATICA($B11&"<XBSP>","ROE (avg)","12m",IF($R$28="","latest",$R$28),,,,"decimal"),"") -> 0.2372024689 | P34: =IFERROR(_xll.ECONOMATICA($B11&"<XBSP>","ROA","12m",IF($R$28="","latest",$R$28),,,,"decimal"),"") -> 0.1051223606 | Q34: =IFERROR(_xll.ECONOMATICA($B11&"<XBSP>","LiquidRatio",,IF($R$28="","latest",$R$28)),"") -> 1.135969156 | R34: =IFERROR(_xll.ECONOMATICA($B11&"<XBSP>","CurrRatio",,IF($R$28="","latest",$R$28)),"") -> 0.9585546637
B35: Braskem PNA | C35: =IFERROR(_xll.ECONOMATICA($B12&"<XBSP>","Class"),"") -> PNA | D35: =IFERROR(_xll.ECONOMATICA($B12&"<XBSP>","Date of Last Quote"),"") -> 2024-09-26 | E35: =IFERROR(_xll.ECONOMATICA($B12&"<XBSP>","MarketCapitaliz","12m",$D$2),"") -> 16267871971 | F35: =IFERROR(_xll.ECONOMATICA($B12&"<XBSP>","P/BV","12m",$D$2),"") -> 192.1739761 | G35: =IFERROR(_xll.ECONOMATICA($B12&"<XBSP>","P/E","12m",$D$2),"") -> -1.799595241 | H35: =IFERROR(_xll.ECONOMATICA($B12&"<XBSP>","Div Yld (start)","12m",$D$2,,,,"decimal"),"") -> 0 | I35: =IFERROR(_xll.ECONOMATICA($B12&"<XBSP>","Divid per Share","12m",$D$2),"") -> 0 | J35: =IFERROR(_xll.ECONOMATICA($B12&"<XBSP>","Fin Statm Date",,IF($R$28="","latest",$R$28)),"") -> 2024-06-30 | K35: =IFERROR(_xll.ECONOMATICA($B12&"<XBSP>","Net Income","12m",IF($R$28="","latest",$R$28)),"") -> -9072842000 | L35: =IFERROR(_xll.ECONOMATICA($B12&"<XBSP>","Net Margin","12m",IF($R$28="","latest",$R$28),,,,"decimal"),"") -> -0.1365102003 | M35: =IFERROR(_xll.ECONOMATICA($B12&"<XBSP>","EPS","12m",IF($R$28="","latest",$R$28)),"") -> -11.38589363 | N35: =IFERROR(_xll.ECONOMATICA($B12&"<XBSP>","BVperShare",,IF($R$28="","latest",$R$28)),"") -> 0.106622137 | O35: =IFERROR(_xll.ECONOMATICA($B12&"<XBSP>","ROE (avg)","12m",IF($R$28="","latest",$R$28),,,,"decimal"),"") -> -3.32525368 | P35: =IFERROR(_xll.ECONOMATICA($B12&"<XBSP>","ROA","12m",IF($R$28="","latest",$R$28),,,,"decimal"),"") -> -0.09895941727 | Q35: =IFERROR(_xll.ECONOMATICA($B12&"<XBSP>","LiquidRatio",,IF($R$28="","latest",$R$28)),"") -> 0.5135013823 | R35: =IFERROR(_xll.ECONOMATICA($B12&"<XBSP>","CurrRatio",,IF($R$28="","latest",$R$28)),"") -> 1.311098791
B36: Sabesp ON | C36: =IFERROR(_xll.ECONOMATICA($B13&"<XBSP>","Class"),"") -> ON | D36: =IFERROR(_xll.ECONOMATICA($B13&"<XBSP>","Date of Last Quote"),"") -> 2024-09-26 | E36: =IFERROR(_xll.ECONOMATICA($B13&"<XBSP>","MarketCapitaliz","12m",$D$2),"") -> 62438626533 | F36: =IFERROR(_xll.ECONOMATICA($B13&"<XBSP>","P/BV","12m",$D$2),"") -> 1.963658577 | G36: =IFERROR(_xll.ECONOMATICA($B13&"<XBSP>","P/E","12m",$D$2),"") -> 15.35878244 | H36: =IFERROR(_xll.ECONOMATICA($B13&"<XBSP>","Div Yld (start)","12m",$D$2,,,,"decimal"),"") -> 0.02400266622 | I36: =IFERROR(_xll.ECONOMATICA($B13&"<XBSP>","Divid per Share","12m",$D$2),"") -> 1.4404 | J36: =IFERROR(_xll.ECONOMATICA($B13&"<XBSP>","Fin Statm Date",,IF($R$28="","latest",$R$28)),"") -> 2024-06-30 | K36: =IFERROR(_xll.ECONOMATICA($B13&"<XBSP>","Net Income","12m",IF($R$28="","latest",$R$28)),"") -> 4065337000 | L36: =IFERROR(_xll.ECONOMATICA($B13&"<XBSP>","Net Margin","12m",IF($R$28="","latest",$R$28),,,,"decimal"),"") -> 0.1504071014 | M36: =IFERROR(_xll.ECONOMATICA($B13&"<XBSP>","EPS","12m",IF($R$28="","latest",$R$28)),"") -> 5.947737091 | N36: =IFERROR(_xll.ECONOMATICA($B13&"<XBSP>","BVperShare",,IF($R$28="","latest",$R$28)),"") -> 46.52030708 | O36: =IFERROR(_xll.ECONOMATICA($B13&"<XBSP>","ROE (avg)","12m",IF($R$28="","latest",$R$28),,,,"decimal"),"") ->  | P36: =IFERROR(_xll.ECONOMATICA($B13&"<XBSP>","ROA","12m",IF($R$28="","latest",$R$28),,,,"decimal"),"") -> 0.06285390949 | Q36: =IFERROR(_xll.ECONOMATICA($B13&"<XBSP>","LiquidRatio",,IF($R$28="","latest",$R$28)),"") -> 0.5828288586 | R36: =IFERROR(_xll.ECONOMATICA($B13&"<XBSP>","CurrRatio",,IF($R$28="","latest",$R$28)),"") -> 1.363113596
B37: B3 ON | C37: =IFERROR(_xll.ECONOMATICA($B14&"<XBSP>","Class"),"") -> ON | D37: =IFERROR(_xll.ECONOMATICA($B14&"<XBSP>","Date of Last Quote"),"") -> 2024-09-26 | E37: =IFERROR(_xll.ECONOMATICA($B14&"<XBSP>","MarketCapitaliz","12m",$D$2),"") -> 59236554614 | F37: =IFERROR(_xll.ECONOMATICA($B14&"<XBSP>","P/BV","12m",$D$2),"") -> 3.098621165 | G37: =IFERROR(_xll.ECONOMATICA($B14&"<XBSP>","P/E","12m",$D$2),"") -> 14.60513342 | H37: =IFERROR(_xll.ECONOMATICA($B14&"<XBSP>","Div Yld (start)","12m",$D$2,,,,"decimal"),"") -> 0.03327427672 | I37: =IFERROR(_xll.ECONOMATICA($B14&"<XBSP>","Divid per Share","12m",$D$2),"") -> 0.40162052 | J37: =IFERROR(_xll.ECONOMATICA($B14&"<XBSP>","Fin Statm Date",,IF($R$28="","latest",$R$28)),"") -> 2024-06-30 | K37: =IFERROR(_xll.ECONOMATICA($B14&"<XBSP>","Net Income","12m",IF($R$28="","latest",$R$28)),"") -> 4183418000 | L37: =IFERROR(_xll.ECONOMATICA($B14&"<XBSP>","Net Margin","12m",IF($R$28="","latest",$R$28),,,,"decimal"),"") -> 0.4110875989 | M37: =IFERROR(_xll.ECONOMATICA($B14&"<XBSP>","EPS","12m",IF($R$28="","latest",$R$28)),"") -> 0.7428894819 | N37: =IFERROR(_xll.ECONOMATICA($B14&"<XBSP>","BVperShare",,IF($R$28="","latest",$R$28)),"") -> 3.501557442 | O37: =IFERROR(_xll.ECONOMATICA($B14&"<XBSP>","ROE (avg)","12m",IF($R$28="","latest",$R$28),,,,"decimal"),"") -> 0.2108587368 | P37: =IFERROR(_xll.ECONOMATICA($B14&"<XBSP>","ROA","12m",IF($R$28="","latest",$R$28),,,,"decimal"),"") -> 0.09007921099 | Q37: =IFERROR(_xll.ECONOMATICA($B14&"<XBSP>","LiquidRatio",,IF($R$28="","latest",$R$28)),"") -> 0.706030124 | R37: =IFERROR(_xll.ECONOMATICA($B14&"<XBSP>","CurrRatio",,IF($R$28="","latest",$R$28)),"") -> 1.702969516
B39: Retorno Acumulado | K39: Escolha um Índice, Selecione o Período (D, W, M, Q, Y), Um Período em Anos ou Digite uma Data → | L39: Índice: | M39: IBOV | N39: Período: | O39: D | P39: Ano ou Data: | R39: 1Y
B57: ="Risco x Retorno (Últimos 12M): "&TEXT(D2,"DD-MM-AA") -> Risco x Retorno (Últimos 12M): 26-09-24

Sheet Base_Gráficos
D1: Planilha Auxiliar Não Modificar
B3: Gráfico de Retorno (base 100) | M3: Gráfico de Risco e Retorno
B4: Período do Atributo: | E4: Mínimo: | F4: =ROUNDDOWN(MIN(C$10:K$10001),-1) -> 70 | M4: Período do Atributo: | N4: 12M
B5: Início: | C5: ='Lâmina_Comparativo de Ações'!D2 -> 2024-09-26 | E5: Máximo: | F5: =ROUNDUP(MAX($C$10:$K$10001),-1) -> 170 | M5: Início: | N5: =C5 -> 2024-09-26
B6: Final: | C6: ='Lâmina_Comparativo de Ações'!R39 -> 1Y | E6: =AtualizarLimitesGrafico("Lâmina_Comparativo de Ações","Base100",F4,F5) -> [Lâmina_Comparativo de Ações]Base100, Min:70, Max:170 | M6: Final:
B7: Intervalo: | C7: ='Lâmina_Comparativo de Ações'!O39 -> D | M7: Intervalo:
B9: Data | C9: =Base!H4 -> PETR3 | D9: =Base!H5 -> VALE3 | E9: =Base!H6 -> ABEV3 | F9: =Base!H7 -> ITUB4 | G9: =Base!$H8 -> CMIG4 | H9: =Base!$H9 -> BRKM5 | I9: =Base!H$10 -> SBSP3 | J9: =Base!$H11 -> B3SA3 | K9: ='Lâmina_Comparativo de Ações'!M39 -> IBOV | M9: Ativo | N9: =_xll.ECONOMATICA($M$10:$M$18,"RETURN",$N$4,$N$5,,,,,"false",,"Retorno") -> Retorno | O9: =_xll.ECONOMATICA($M$10:$M$18,"risk",$N$4,$N$5,,,,,"false",,"Risco") -> Risco
B10: =_xll.ECONOMATICA($C$9,"close",$C$4,$C$5,$C$6,$C$7,,,"true","false",,{"def.defdef=7"}) -> 2023-09-26 | C10: 100 | D10: =_xll.ECONOMATICA(D9,"close",$C$4,$C$5,$C$6,$C$7,,,"FALSE","false",,{"def.defdef=7"}) -> 100 | E10: =_xll.ECONOMATICA(E9,"close",$C$4,$C$5,$C$6,$C$7,,,"FALSE","false",,{"def.defdef=7"}) -> 100 | F10: =_xll.ECONOMATICA(F9,"close",$C$4,$C$5,$C$6,$C$7,,,"FALSE","false",,{"def.defdef=7"}) -> 100 | G10: =_xll.ECONOMATICA(G9,"close",$C$4,$C$5,$C$6,$C$7,,,"FALSE","false",,{"def.defdef=7"}) -> 100 | H10: =_xll.ECONOMATICA(H9,"close",$C$4,$C$5,$C$6,$C$7,,,"FALSE","false",,{"def.defdef=7"}) -> 100 | I10: =_xll.ECONOMATICA(I9,"close",$C$4,$C$5,$C$6,$C$7,,,"FALSE","false",,{"def.defdef=7"}) -> 100 | J10: =_xll.ECONOMATICA(J9,"close",$C$4,$C$5,$C$6,$C$7,,,"FALSE","false",,{"def.defdef=7"}) -> 100 | K10: =_xll.ECONOMATICA(K9,"close",$C$4,$C$5,$C$6,$C$7,,,"FALSE","false",,{"def.defdef=7"}) -> 100 | M10: =C9 -> PETR3 | N10: 27.50800201 | O10: 29.30790171
B11: 2023-09-27 | C11: 103.7138927 | D11: 100.2135448 | E11: 99.46319018 | F11: 99.81203007 | G11: 99.11858974 | H11: 99.80266404 | I11: 98.21696384 | J11: 99.66859983 | K11: 100.117012 | M11: =D9 -> VALE3 | N11: 9.400360351 | O11: 21.63037484
B12: 2023-09-28 | C12: 103.1911967 | D12: 101.7388652 | E12: 99.5398773 | F12: 102.443609 | G12: 99.35897436 | H12: 100.2960039 | I12: 98.7502083 | J12: 101.1599006 | K12: 101.3462508 | M12: =E9 -> ABEV3 | N12: 3.613078765 | O12: 18.88009064
B13: 2023-09-29 | C13: 104.2365887 | D13: 103.081147 | E13: 100.5368098 | F13: 102.2932331 | G13: 99.43910256 | H13: 101.2333498 | I13: 101.6997167 | J13: 101.8227009 | K13: 102.0769496 | M13: =F9 -> ITUB4 | N13: 47.52765073 | O13: 17.66451706
B14: 2023-10-02 | C14: 102.2558459 | D14: 102.181208 | E14: 100.3834356 | F14: 101.3439331 | G14: 99.11858974 | H14: 99.11198816 | I14: 100.8165306 | J14: 99.42004971 | K14: 100.7561118 | M14: =G9 -> CMIG4 | N14: 39.83805231 | O14: 27.04496014
B15: 2023-10-03 | C15: 101.045392 | D15: 101.5558267 | E15: 100.0766871 | F15: 100.064908 | G15: 96.875 | H15: 97.38529847 | I15: 100.149975 | J15: 95.1946976 | K15: 99.32186116 | M15: =H9 -> BRKM5 | N15: 1.085347805 | O15: 47.33012762
B16: 2023-10-04 | C16: 97.9917469 | D16: 100.4728493 | E16: 101.303681 | F16: 102.3596295 | G16: 97.83653846 | H16: 96.69462259 | I16: 101.3831028 | J16: 98.26014913 | K16: 99.48685314 | M16: =I9 -> SBSP3 | N16: 54.92727236 | O16: 23.02989995
B17: 2023-10-05 | C17: 97.60660248 | D17: 100.5186089 | E17: 98.84969325 | F17: 103.9772201 | G17: 97.75641026 | H17: 95.70794277 | I17: 100.8165306 | J17: 97.18309859 | K17: 99.20367573 | M17: =J9 -> B3SA3 | N17: -7.064136629 | O17: 29.3965807
B18: 2023-10-06 | C18: 100.0550206 | D18: 101.9829164 | E18: 101.1503067 | F18: 104.9552982 | G18: 97.11538461 | H18: 94.27725703 | I18: 100.29995 | J18: 98.09444905 | K18: 99.97915817 | M18: =K9 -> IBOV | N18: 16.47761172 | O18: 12.71288763
B19: 2023-10-09 | C19: 104.1540578 | D19: 101.2507627 | E19: 100.9969325 | F19: 104.0524569 | G19: 99.11858974 | H19: 94.62259497 | I19: 102.0663223 | J19: 97.5973488 | K19: 100.8429907
B20: 2023-10-10 | C20: 105.2269601 | D20: 101.8608908 | E20: 101.6104294 | F20: 103.9396018 | G20: 100.0801282 | H20: 96.6452886 | I20: 104.1159807 | J20: 99.83429992 | K20: 102.2273786
B21: 2023-10-11 | C21: 104.869326 | D21: 102.7455766 | E21: 101.9171779 | F21: 105.2562453 | G21: 100.3205128 | H21: 95.26393685 | I21: 103.5994001 | J21: 99.66859983 | K21: 102.5021667
B22: 2023-10-12
B23: 2023-10-13 | C23: 108.170564 | D23: 101.5710799 | E23: 99.5398773 | F23: 104.1653121 | G23: 97.35576923 | H23: 93.78391712 | I23: 102.1163139 | J23: 96.10604805 | K23: 101.3666723
B24: 2023-10-16 | C24: 109.2434663 | D24: 102.6540574 | E24: 99.76993865 | F24: 104.3157856 | G24: 97.99679487 | H24: 92.25456339 | I24: 104.665889 | J24: 97.26594863 | K24: 102.0495225
B25: 2023-10-17 | C25: 111.7193948 | D25: 103.4929835 | E25: 98.1595092 | F25: 102.7734318 | G25: 96.23397436 | H25: 93.09324124 | I25: 102.09965 | J25: 93.37199669 | K25: 101.5018377
B26: 2023-10-18 | C26: 114.3328748 | D26: 99.69493594 | E26: 96.08895705 | F26: 100.6291837 | G26: 93.58974359 | H26: 91.31721756 | I26: 99.16680553 | J26: 92.21209611 | K26: 99.88283914
B27: 2023-10-19 | C27: 113.5075653 | D27: 98.26113484 | E27: 96.01226994 | F27: 101.7953537 | G27: 94.39102564 | H27: 91.6625555 | I27: 100.6332278 | J27: 91.13504557 | K27: 99.83437751
B28: 2023-10-20 | C28: 112.2696011 | D28: 95.60707749 | E28: 95.78220859 | F28: 101.4191699 | G28: 94.63141026 | H28: 89.83719783 | I28: 99.05015831 | J28: 92.37779619 | K28: 99.09088465
B29: 2023-10-23 | C29: 105.5020633 | D29: 95.42403905 | E29: 95.70552147 | F29: 101.532025 | G29: 95.43269231 | H29: 90.52787371 | I29: 101.8830195 | J29: 93.70339685 | K29: 98.76620748
B30: 2023-10-24 | C30: 107.1251719 | D30: 97.6052471 | E30: 96.01226994 | F30: 101.532025 | G30: 95.59294872 | H30: 88.99851998 | I30: 101.1664722 | J30: 96.10604805 | K30: 99.62210611
B31: 2023-10-25 | C31: 107.4277854 | D31: 97.51372788 | E31: 95.39877301 | F31: 101.720117 | G31: 94.95192308 | H31: 87.12382832 | I31: 100.0999833 | J31: 95.6089478 | K31: 98.80600837
B32: 2023-10-26 | C32: 106.6299862 | D32: 99.60341672 | E32: 96.85582822 | F32: 104.2405488 | G32: 97.43589744 | H32: 87.61716823 | I32: 101.6163973 | J32: 97.18309859 | K32: 100.5109138
B33: 2023-10-27 | C33: 105.8596974 | D33: 103.0658938 | E33: 94.24846626 | F33: 102.698195 | G33: 95.59294872 | H33: 86.53182042 | I33: 99.25012498 | J33: 92.7920464 | K33: 99.21879919
B34: 2023-10-30 | C34: 105.0068776 | D34: 103.9963392 | E34: 94.78527607 | F34: 101.8705905 | G34: 94.31089744 | H34: 81.79575728 | I34: 97.63372771 | J34: 91.7978459 | K34: 98.54465358
B35: 2023-10-31 | C35: 104.0990371 | D35: 105.2471019 | E35: 98.6196319 | F35: 100.8925125 | G35: 94.07051282 | H35: 79.27972373 | I35: 97.26712215 | J35: 91.96354598 | K35: 99.08071769
B36: 2023-11-01 | C36: 105.3094911 | D36: 107.2605247 | E36: 99.61656442 | F36: 102.3141064 | G36: 98.07692308 | H36: 81.49975333 | I36: 99.00016664 | J36: 95.69179785 | K36: 100.7526965
B37: 2023-11-02
B38: 2023-11-03 | C38: 106.1898212 | D38: 108.6028066 | E38: 101.9171779 | F38: 105.1373433 | G38: 100.5608974 | H38: 87.12382832 | I38: 101.4664223 | J38: 101.1599006 | K38: 103.4735273
B39: 2023-11-06 | C39: 105.914718 | D39: 109.0604027 | E39: 103.6042945 | F39: 106.1160654 | G39: 101.6025641 | H39: 87.46916626 | I39: 100.9831695 | J39: 101.4084507 | K39: 103.7110892
B40: 2023-11-07 | C40: 103.5763411 | D40: 106.8944478 | E40: 104.0644172 | F40: 109.089875 | G40: 102.3237179 | H40: 87.02516034 | I40: 101.8163639 | J40: 103.2311516 | K40: 104.4438896
B41: 2023-11-08 | C41: 101.127923 | D41: 106.9707138 | E41: 103.8343558 | F41: 109.5792361 | G41: 101.5224359 | H41: 85.24913666 | I41: 101.5330778 | J41: 103.3140016 | K41: 104.3638588
B42: 2023-11-09 | C42: 103.2737276 | D42: 107.4893227 | E42: 102.8374233 | F42: 110.0685971 | G42: 102.5641026 | H42: 98.56931426 | I42: 101.8496917 | J42: 102.4026512 | K42: 104.2390442
B43: 2023-11-10 | C43: 102.9436039 | D43: 109.1366687 | E43: 102.3773006 | F43: 111.3861077 | G43: 103.0448718 | H43: 97.2372965 | I43: 101.8663556 | J43: 107.3736537 | K43: 105.582379
B44: 2023-11-13 | C44: 105.2544704 | D44: 108.9078707 | E44: 102.9907975 | F44: 110.6332445 | G44: 101.9230769 | H44: 96.1026147 | I44: 103.2494584 | J44: 102.9826015 | K44: 105.4440435
B45: 2023-11-14 | C45: 106.4649243 | D45: 112.2788286 | E45: 105.0613497 | F45: 112.2895435 | G45: 104.9679487 | H45: 98.76665022 | I45: 105.5490751 | J45: 104.8881524 | K45: 107.8571333
B46: 2023-11-15
B47: 2023-11-16 | C47: 104.3191197 | D47: 113.0262355 | E47: 104.8312883 | F47: 114.0964151 | G47: 107.5320513 | H47: 97.73063641 | I47: 107.8653558 | J47: 107.0422535 | K47: 109.1474702
B48: 2023-11-17 | C48: 108.7207703 | D48: 113.2397804 | E48: 104.2944785 | F48: 114.6234194 | G48: 107.1314103 | H48: 98.76665022 | I48: 107.7487085 | J48: 105.4681027 | K48: 109.2647887
B49: 2023-11-20 | C49: 108.3631362 | D49: 116.0158633 | E49: 104.2944785 | F49: 115.7527142 | G49: 104.0865385 | H49: 99.90133202 | I49: 107.3487752 | J49: 108.6164043 | K49: 110.3014946
B50: 2023-11-21 | C50: 107.2902338 | D50: 118.8224527 | E50: 103.0674847 | F50: 115.5644984 | G50: 100.7211538 | H50: 98.07597435 | I50: 108.2986169 | J50: 106.3794532 | K50: 110.0116092
B51: 2023-11-22 | C51: 107.3909503 | D51: 117.6929488 | E51: 104.0644172 | F51: 116.2797184 | G51: 90.94551282 | H51: 99.06265417 | I51: 109.9816697 | J51: 107.8707539 | K51: 110.3700099
B52: 2023-11-23 | C52: 107.875335 | D52: 116.9539283 | E52: 103.9110429 | F52: 116.1291457 | G52: 88.06089744 | H52: 99.95066601 | I52: 112.8811865 | J52: 109.1135046 | K52: 110.8432858
B53: 2023-11-24 | C53: 107.5619096 | D53: 115.9633263 | E53: 102.6840491 | F53: 115.489212 | G53: 84.61538461 | H53: 99.70399605 | I53: 113.8310282 | J53: 107.0422535 | K53: 109.9163673
B54: 2023-11-27 | C54: 106.8495791 | D54: 115.2714773 | E54: 104.1411043 | F54: 115.1880668 | G54: 85.09615385 | H54: 98.76665022 | I54: 112.797867 | J54: 107.0422535 | K54: 110.1039263
B55: 2023-11-28 | C55: 107.8468418 | D55: 115.5230588 | E55: 104.6779141 | F55: 116.3173615 | G55: 85.81730769 | H55: 98.66798224 | I55: 112.7812031 | J55: 109.5277548 | K55: 110.8105081
B56: 2023-11-29 | C56: 106.4221807 | D56: 115.4916111 | E56: 101.993865 | F56: 117.1078679 | G56: 86.69871795 | H56: 100.8880118 | I56: 111.3647725 | J56: 109.7763049 | K56: 110.4841496
B57: 2023-11-30 | C57: 107.4194435 | D57: 116.1205647 | E57: 104.9846626 | F57: 118.9147395 | G57: 88.70192308 | H57: 94.37592501 | I57: 112.5812365 | J57: 110.1905551 | K57: 111.5047687
B58: 2023-12-01 | C58: 105.9947824 | D58: 118.2747309 | E58: 107.9754601 | F58: 118.642239 | G58: 88.14102564 | H58: 88.85051801 | I58: 114.4142643 | J58: 112.096106 | K58: 112.2524387
B59: 2023-12-04 | C59: 103.9147773 | D59: 115.6174018 | E59: 107.8220859 | F59: 118.7928958 | G59: 88.38141026 | H59: 88.30784411 | I59: 113.2811198 | J59: 112.1789561 | K59: 111.0421064
B60: 2023-12-05 | C60: 103.1454603 | D60: 114.5481806 | E60: 109.202454 | F60: 119.7721651 | G60: 89.1025641 | H60: 86.03848051 | I60: 113.2811198 | J60: 111.4333057 | K60: 111.1300799
B61: 2023-12-06 | C61: 100.6950433 | D61: 113.7934363 | E61: 107.2852761 | F61: 118.7175674 | G61: 89.18269231 | H61: 85.89047854 | I61: 114.9641726 | J61: 109.6106048 | K61: 110.0086493
B62: 2023-12-07 | C62: 101.0084687 | D62: 114.1550846 | E62: 107.9754601 | F62: 120.035759 | G62: 88.70192308 | H62: 87.2224963 | I62: 113.2144643 | J62: 110.1077051 | K62: 110.3474779
B63: 2023-12-08 | C63: 104.4561485 | D63: 114.4695614 | E63: 109.7392638 | F63: 121.5542379 | G63: 87.5 | H63: 86.97582634 | I63: 112.7478754 | J63: 112.1789561 | K63: 111.2967445
B64: 2023-12-11 | C64: 104.142723 | D64: 114.5639045 | E64: 109.8159509 | F64: 120.7190745 | G64: 86.85897436 | H64: 82.88110508 | I64: 114.8975171 | J64: 115.4101077 | K64: 111.1416042
B65: 2023-12-12 | C65: 102.5471027 | D65: 114.7683144 | E65: 109.1257669 | F65: 120.1116829 | G65: 87.98076923 | H65: 82.73310311 | I65: 115.364106 | J65: 114.7473074 | K65: 110.6920337
B66: 2023-12-13 | C66: 103.9147773 | D66: 114.7840382 | E66: 112.7300613 | F66: 123.7560323 | G66: 90.7051282 | H66: 84.80513074 | I66: 119.0634894 | J66: 119.5526098 | K66: 113.3734927
B67: 2023-12-14 | C67: 106.3367011 | D67: 115.4129919 | E67: 111.196319 | F67: 124.7810056 | G67: 91.50641026 | H67: 83.47311298 | I67: 118.8135311 | J67: 122.8666114 | K67: 114.5793501
B68: 2023-12-15 | C68: 105.5103977 | D68: 116.1362886 | E68: 110.9662577 | F68: 124.249538 | G68: 90.94551282 | H68: 85.89047854 | I68: 118.5969005 | J68: 121.5410108 | K68: 114.0145278
B69: 2023-12-18 | C69: 107.6758825 | D69: 116.686623 | E69: 111.5797546 | F69: 124.8569296 | G69: 92.30769231 | H69: 89.63986187 | I69: 120.329945 | J69: 122.1209611 | K69: 114.7910348
B70: 2023-12-19 | C70: 108.388213 | D70: 117.5042627 | E70: 112.7300613 | F70: 124.9328535 | G70: 93.6698718 | H70: 96.05328071 | I70: 121.2797867 | J70: 120.5468103 | K70: 115.4627722
B71: 2023-12-20 | C71: 108.5876655 | D71: 117.1268905 | E71: 110.8756777 | F71: 123.6421464 | G71: 92.62820513 | H71: 96.99062654 | I71: 120.9798367 | J71: 117.3985087 | K71: 114.5461433
B72: 2023-12-21 | C72: 108.5876655 | D72: 121.026403 | E72: 110.5528956 | F72: 124.4773098 | G72: 92.06730769 | H72: 103.8480513 | I72: 123.7127145 | J72: 120.04971 | K72: 115.7527276
B73: 2023-12-22 | C73: 110.0408198 | D73: 120.1144203 | E73: 110.6335911 | F73: 126.4513324 | G73: 93.0905495 | H73: 105.673409 | I73: 124.7792035 | J73: 120.2154101 | K73: 116.2526863
B74: 2023-12-25
B75: 2023-12-26 | C75: 111.6934266 | D75: 120.538964 | E75: 111.1177644 | F75: 127.7420395 | G75: 94.86611857 | H75: 107.5481006 | I75: 123.5627395 | J75: 121.4581607 | K75: 116.9357291
B76: 2023-12-27 | C76: 111.5224673 | D76: 121.7025282 | E76: 111.6826332 | F76: 128.6151649 | G76: 95.2043222 | H76: 106.8574248 | I76: 124.7458757 | J76: 120.7953604 | K76: 117.5143964
B77: 2023-12-28 | C77: 111.0665758 | D77: 121.3880514 | E77: 110.7949822 | F77: 128.9568226 | G77: 97.06444217 | H77: 107.8441046 | I77: 125.595734 | J77: 120.5468103 | K77: 117.5069704
B78: 2023-12-29
B79: 2024-01-01
B80: 2024-01-02 | C80: 112.1493182 | D80: 121.1521938 | E80: 110.6335911 | F80: 127.3146835 | G80: 95.88072946 | H80: 104.0947213 | I80: 122.6962173 | J80: 118.2152028 | K80: 116.203384
B81: 2024-01-03 | C81: 115.9674098 | D81: 120.5232401 | E81: 109.7459401 | F81: 125.9093604 | G81: 96.97989127 | H81: 101.1346818 | I81: 122.4295951 | J81: 117.8814973 | K81: 116.3236361
B82: 2024-01-04 | C82: 114.0868572 | D82: 118.9036845 | E82: 110.1494178 | F82: 125.0737628 | G82: 96.55713673 | H82: 101.9733596 | I82: 120.9965006 | J82: 114.461015 | K82: 114.915464
B83: 2024-01-05 | C83: 115.0841199 | D83: 117.378472 | E83: 109.7459401 | F83: 127.9983543 | G83: 97.57174762 | H83: 99.21065614 | I83: 120.5632395 | J83: 116.5466749 | K83: 115.6134114
B84: 2024-01-08 | C84: 112.9471284 | D84: 116.780966 | E84: 110.6335911 | F84: 126.6310128 | G84: 99.34731668 | H84: 101.1840158 | I84: 122.0796534 | J84: 119.1328932 | K84: 115.9668643
B85: 2024-01-09 | C85: 112.3202775 | D85: 115.302925 | E85: 109.9073312 | F85: 126.5550494 | G85: 101.4610894 | H85: 97.68130242 | I85: 122.3962673 | J85: 117.2975125 | K85: 115.1087151
B86: 2024-01-10 | C86: 111.2090419 | D86: 113.5733025 | E86: 111.0370688 | F86: 126.4411042 | G86: 101.5456403 | H86: 93.68524914 | I86: 124.5792368 | J86: 116.129543 | K86: 114.5784744
B87: 2024-01-11 | C87: 112.3487707 | D87: 114.1708084 | E87: 109.4231579 | F87: 126.6689945 | G87: 102.2220475 | H87: 91.71188949 | I87: 127.6287285 | J87: 116.3798221 | K87: 114.4100409
B88: 2024-01-12 | C88: 112.9471284 | D88: 112.7242151 | E88: 109.6652446 | F88: 126.8209213 | G88: 102.3065984 | H88: 93.38924519 | I88: 128.3786036 | J88: 117.6312181 | K88: 114.7068356
B89: 2024-01-15 | C89: 114.0868572 | D89: 112.5040813 | E89: 109.6652446 | F89: 127.0488116 | G89: 102.729353 | H89: 93.43857918 | I89: 128.8118647 | J89: 117.8814973 | K89: 115.1737976
B90: 2024-01-16 | C90: 112.8331555 | D90: 111.0417641 | E90: 107.7285515 | F90: 125.2636713 | G90: 100.1928258 | H90: 90.82387765 | I90: 126.9788369 | J90: 116.6301013 | K90: 113.2237117
B91: 2024-01-17 | C91: 111.8928792 | D91: 109.2020747 | E91: 108.3741159 | F91: 125.3396347 | G91: 100.3619276 | H91: 88.15984213 | I91: 127.6953841 | J91: 114.5444414 | K91: 112.5492333
B92: 2024-01-18 | C92: 111.0665758 | D92: 108.4945019 | E92: 107.647856 | F92: 124.8078908 | G92: 98.4172567 | H92: 87.37049827 | I92: 126.2289618 | J92: 115.5455582 | K92: 111.4913003
B93: 2024-01-19 | C93: 110.9810961 | D93: 107.0793562 | E93: 107.7285515 | F93: 125.1117445 | G93: 97.48719671 | H93: 87.07449433 | I93: 126.6455591 | J93: 115.0449998 | K93: 111.7714478
B94: 2024-01-22 | C94: 111.2375351 | D94: 106.607641 | E94: 107.8092471 | F94: 123.0607323 | G94: 96.64168763 | H94: 85.15046867 | I94: 126.9288452 | J94: 112.4587815 | K94: 110.8658791
B95: 2024-01-23 | C95: 112.8616487 | D95: 108.8089787 | E95: 107.8899426 | F95: 123.6304579 | G95: 97.65629853 | H95: 87.86383819 | I95: 128.7452091 | J95: 114.5444414 | K95: 112.3204023
B96: 2024-01-24 | C96: 111.8073995 | D96: 109.9096476 | E96: 106.5181183 | F96: 123.0607323 | G96: 98.07905307 | H96: 87.81450419 | I96: 127.3121146 | J96: 113.7101775 | K96: 111.9291189
B97: 2024-01-25 | C97: 116.9931658 | D97: 107.4881761 | E97: 106.5181183 | F97: 122.7948603 | G97: 98.58635851 | H97: 90.23186976 | I97: 128.461923 | J97: 112.0416496 | K97: 112.2382698
B98: 2024-01-26 | C98: 119.5575556 | D98: 109.2806939 | E98: 106.5181183 | F98: 124.6179823 | G98: 98.4172567 | H98: 91.51455353 | I98: 128.3786036 | J98: 110.2896952 | K98: 112.9376007
B99: 2024-01-29 | C99: 120.6972845 | D99: 108.7618072 | E99: 106.9215961 | F99: 123.9722933 | G99: 98.5018076 | H99: 92.64923532 | I99: 129.2951175 | J99: 110.2062689 | K99: 112.5306946
B100: 2024-01-30 | C100: 120.1559133 | D100: 108.1485774 | E100: 105.2269896 | F100: 123.1746774 | G100: 97.23354399 | H100: 87.41983226 | I100: 130.2616231 | J100: 108.4543145 | K100: 111.5666724
B101: 2024-01-31 | C101: 120.1274201 | D101: 106.5447456 | E101: 105.5497718 | F101: 124.5040372 | G101: 97.4026458 | H101: 87.86383819 | I101: 131.4114314 | J101: 109.2051521 | K101: 111.8735815
B102: 2024-02-01 | C102: 122.4068778 | D102: 106.0573066 | E102: 105.4690763 | F102: 124.2290915 | G102: 99.09366396 | H102: 88.06117415 | I102: 131.3947675 | J102: 110.87368 | K102: 112.5117443
B103: 2024-02-02 | C103: 120.6118048 | D103: 103.9031404 | E103: 105.4690763 | F103: 124.4191023 | G103: 96.04983128 | H103: 86.72915639 | I103: 131.2114648 | J103: 109.8725633 | K103: 111.3744022
B104: 2024-02-05 | C104: 120.6118048 | D104: 103.0068814 | E104: 105.6304674 | F104: 126.7752368 | G104: 96.13438219 | H104: 86.72915639 | I104: 132.0613231 | J104: 109.0382993 | K104: 111.734528
B105: 2024-02-06 | C105: 122.435371 | D105: 104.830847 | E105: 106.760205 | F105: 132.209547 | G105: 97.06444217 | H105: 87.66650222 | I105: 133.8276954 | J105: 110.2062689 | K105: 114.2064916
B106: 2024-02-07 | C106: 123.603593 | D106: 105.0352569 | E106: 104.9042075 | F106: 131.2594928 | G106: 96.21893309 | H106: 86.72915639 | I106: 133.9276787 | J106: 112.0416496 | K106: 113.798053
B107: 2024-02-08 | C107: 123.1761947 | D107: 104.1075503 | E107: 104.5007298 | F107: 128.6753453 | G107: 94.95066948 | H107: 86.43315244 | I107: 131.5947342 | J107: 109.7891369 | K107: 112.2804701
B108: 2024-02-09 | C108: 121.7800269 | D108: 103.6515589 | E108: 104.5007298 | F108: 130.3094386 | G108: 96.21893309 | H108: 85.59447459 | I108: 132.9611731 | J108: 110.456548 | K108: 112.1130174
B109: 2024-02-12
B110: 2024-02-13
B111: 2024-02-14 | C111: 120.5548184 | D111: 103.3370821 | E111: 104.2586431 | F111: 130.3094386 | G111: 95.45797492 | H111: 84.36112481 | I111: 131.628062 | J111: 107.286345 | K111: 111.2308212
B112: 2024-02-15 | C112: 123.9740049 | D112: 103.0068814 | E112: 103.6937743 | F112: 131.4115015 | G112: 96.81078945 | H112: 86.0878145 | I112: 134.4609232 | J112: 105.8680963 | K112: 111.9189869
B113: 2024-02-16 | C113: 126.2249694 | D113: 106.4189549 | E113: 102.9675144 | F113: 131.2594928 | G113: 98.58635851 | H113: 94.96793291 | I113: 135.7107149 | J113: 106.2018019 | K113: 112.72617
B114: 2024-02-19 | C114: 126.7663406 | D114: 106.1202019 | E114: 103.3709921 | F114: 132.7035752 | G114: 100.5310294 | H114: 94.03058707 | I114: 136.443926 | J114: 105.8680963 | K114: 112.9975166
B115: 2024-02-20 | C115: 124.2304439 | D115: 103.7930735 | E115: 103.6937743 | F115: 135.5917401 | G115: 101.5456403 | H115: 95.70794277 | I115: 135.7107149 | J115: 107.9537562 | K115: 113.7684629
B116: 2024-02-21 | C116: 124.5438693 | D116: 104.5792655 | E116: 104.097252 | F116: 134.8316967 | G116: 99.5164185 | H116: 95.5599408 | I116: 132.7945342 | J116: 106.869213 | K116: 113.8695808
B117: 2024-02-22 | C117: 124.629349 | D117: 105.6956582 | E117: 104.5814253 | F117: 134.0668758 | G117: 99.43186759 | H117: 101.6280217 | I117: 134.6108982 | J117: 105.5343907 | K117: 114.0525773
B118: 2024-02-23 | C118: 124.2874303 | D118: 105.9472397 | E118: 104.0165565 | F118: 134.4593432 | G118: 98.07905307 | H118: 99.70399605 | I118: 133.6277287 | J118: 103.8658628 | K118: 113.3329037
B119: 2024-02-26 | C119: 125.5981185 | D119: 103.3842536 | E119: 105.2269896 | F119: 134.8518107 | G119: 98.4172567 | H119: 103.0093734 | I119: 133.7443759 | J119: 104.116142 | K119: 113.4995682
B120: 2024-02-27 | C120: 125.2846931 | D120: 106.1044781 | E120: 107.4057693 | F120: 136.5001739 | G120: 99.34731668 | H120: 104.1933892 | I120: 132.7112148 | J120: 106.3686546 | K120: 115.3213193
B121: 2024-02-28 | C121: 118.5317997 | D121: 104.9409139 | E121: 108.535507 | F121: 136.5786674 | G121: 100.2773767 | H121: 101.8253577 | I121: 132.5612398 | J121: 105.503994 | K121: 113.9780371
B122: 2024-02-29 | C122: 117.4490573 | D122: 105.3340099 | E122: 101.5149946 | F122: 133.2034474 | G122: 101.2074367 | H122: 103.7987173 | I122: 131.9113481 | J122: 107.6006552 | K122: 112.9837505
B123: 2024-03-01 | C123: 117.4205641 | D123: 105.1610476 | E123: 100.385257 | F123: 133.7832271 | G123: 102.1374966 | H123: 107.9921066 | I123: 132.7612065 | J123: 104.1621308 | K123: 113.1241701
B124: 2024-03-04 | C124: 116.9646725 | D124: 104.92519 | E124: 100.7080392 | F124: 132.7622809 | G124: 100.869233 | H124: 109.2254563 | I124: 132.6112315 | J124: 103.1557334 | K124: 112.388725
B125: 2024-03-05 | C125: 116.252342 | D125: 103.541492 | E125: 102.8868189 | F125: 132.6444794 | G125: 100.7846821 | H125: 104.0453873 | I125: 131.9613398 | J125: 102.2332024 | K125: 112.1764273
B126: 2024-03-06 | C126: 118.2468675 | D126: 104.9566377 | E126: 102.4026456 | F126: 134.0973644 | G126: 101.5456403 | H126: 99.75333004 | I126: 132.9111815 | J126: 102.7364011 | K126: 112.8700924
B127: 2024-03-07 | C127: 117.5630302 | D127: 104.5949894 | E127: 102.0798634 | F127: 132.6837465 | G127: 99.85462213 | H127: 100.7400099 | I127: 132.7945342 | J127: 103.3234663 | K127: 112.3880419
B128: 2024-03-08 | C128: 105.3679315 | D128: 103.7930735 | E128: 103.6130788 | F128: 133.9010286 | G128: 101.2074367 | H128: 99.40799211 | I128: 133.6110648 | J128: 104.4975966 | K128: 111.2767959
B129: 2024-03-11 | C129: 103.3449129 | D129: 100.5696861 | E129: 103.2902966 | F129: 134.5685704 | G129: 100.1928258 | H129: 100.8880118 | I129: 130.1449758 | J129: 105.503994 | K129: 110.4472998
B130: 2024-03-12 | C130: 106.4791672 | D130: 99.943068 | E130: 103.6130788 | F130: 135.1183107 | G130: 101.1228857 | H130: 101.1346818 | I130: 128.4285952 | J130: 107.5167888 | K130: 111.7996368
B131: 2024-03-13 | C131: 105.424918 | D131: 100.5837287 | E131: 102.8868189 | F131: 136.4533943 | G131: 97.90995125 | H131: 102.7627035 | I131: 128.011998 | J131: 107.0135901 | K131: 112.0958097
B132: 2024-03-14 | C132: 104.7125875 | D132: 99.3024073 | E132: 103.2902966 | F132: 136.3748599 | G132: 93.85150767 | H132: 103.6013813 | I132: 127.4620896 | J132: 104.9169288 | K132: 111.8190162
B133: 2024-03-15 | C133: 104.4846417 | D133: 98.16893069 | E133: 101.9184723 | F133: 135.6287838 | G133: 96.64168763 | H133: 107.1040947 | I133: 127.4787535 | J133: 103.4073327 | K133: 110.9887057
B134: 2024-03-18 | C134: 105.3679315 | D134: 100.0416312 | E134: 101.9184723 | F134: 136.1785241 | G134: 97.90995125 | H134: 108.0414406 | I134: 126.662223 | J134: 103.6589321 | K134: 111.1746797
B135: 2024-03-19 | C135: 104.1997095 | D135: 100.862991 | E135: 101.1922124 | F135: 136.3748599 | G135: 97.65629853 | H135: 114.1095215 | I135: 128.9451758 | J135: 103.2395998 | K135: 111.6779223
B136: 2024-03-20 | C136: 106.3651943 | D136: 101.5365061 | E136: 101.1922124 | F136: 136.6497301 | G136: 100.6155803 | H136: 132.0177602 | I136: 130.728212 | J136: 106.9297236 | K136: 113.0755333
B137: 2024-03-21 | C137: 104.1997095 | D137: 101.2900982 | E137: 101.7570812 | F137: 135.2361122 | G137: 101.9683948 | H137: 132.3630982 | I137: 131.2114648 | J137: 103.9943979 | K137: 112.2293726
B138: 2024-03-22 | C138: 105.0260129 | D138: 100.1237672 | E138: 100.1431704 | F138: 133.3450796 | G138: 104.4203711 | H138: 134.6817958 | I138: 133.8110315 | J138: 100.6397399 | K138: 111.2385362
B139: 2024-03-25 | C139: 106.3367011 | D139: 99.9102136 | E139: 98.69065057 | F139: 133.3450796 | G139: 105.1813293 | H139: 128.5643809 | I139: 134.9108482 | J139: 99.80107539 | K139: 111.1547923
B140: 2024-03-26 | C140: 105.168479 | D140: 98.64531941 | E140: 100.1431704 | F140: 135.9945815 | G140: 105.434982 | H140: 129.4030587 | I140: 136.8271955 | J140: 99.80107539 | K140: 111.0948502
B141: 2024-03-27 | C141: 106.4506739 | D141: 99.54881526 | E141: 100.4659525 | F141: 136.7459328 | G141: 108.0554631 | H141: 135.2738036 | I141: 138.7935344 | J141: 101.2537789 | K141: 111.8195854
B142: 2024-03-28 | C142: 109.0720503 | D142: 99.9266408 | E142: 100.7887347 | F142: 136.9832016 | G142: 107.7124299 | H142: 130.2417366 | I142: 141.1431428 | J142: 101.0010657 | K142: 112.1834242
B143: 2024-03-29
B144: 2024-04-01 | C144: 109.8698605 | D144: 100.5673015 | E144: 99.49760601 | F144: 132.3052382 | G144: 108.8272879 | H144: 129.7483966 | I144: 139.8100317 | J144: 99.14783512 | K144: 111.2064416
B145: 2024-04-02 | C145: 112.8616487 | D145: 101.7500597 | E145: 99.01343275 | F145: 132.463498 | G145: 108.7415295 | H145: 128.4657129 | I145: 136.7105482 | J145: 98.81088411 | K145: 111.6951474
B146: 2024-04-03 | C146: 111.9783588 | D146: 100.2880391 | E146: 100.4659525 | F146: 131.4743739 | G146: 109.1703211 | H146: 128.8110508 | I146: 139.1101483 | J146: 98.55817085 | K146: 111.4936209
B147: 2024-04-04 | C147: 111.4654809 | D147: 99.17098972 | E147: 100.6273436 | F147: 129.7335155 | G147: 110.9712454 | H147: 129.3043907 | I147: 140.5599067 | J147: 100.7483524 | K147: 111.5891956
B148: 2024-04-05 | C148: 111.2375351 | D148: 98.08679471 | E148: 98.69065057 | F148: 129.4961258 | G148: 110.3709373 | H148: 126.8870252 | I148: 140.2432928 | J148: 101.0853034 | K148: 111.0356436
B149: 2024-04-08 | C149: 112.8331555 | D149: 103.442061 | E149: 98.2064773 | F149: 131.434809 | G149: 111.9145868 | H149: 123.2856438 | I149: 140.809865 | J149: 102.1803942 | K149: 112.8411328
B150: 2024-04-09 | C150: 113.4030199 | D150: 102.7521187 | E150: 99.73969264 | F150: 132.8195827 | G150: 114.1443027 | H150: 122.6443019 | I150: 141.5764039 | J150: 104.3705758 | K150: 113.7459222
B151: 2024-04-10 | C151: 116.8222064 | D151: 101.191535 | E151: 97.64160849 | F151: 130.0104703 | G151: 112.6864115 | H151: 121.904292 | I151: 139.6433928 | J151: 100.7483524 | K151: 112.1375722
B152: 2024-04-11 | C152: 115.7679572 | D152: 101.6186421 | E152: 98.44856393 | F152: 129.7730805 | G152: 112.4291366 | H152: 121.0656142 | I152: 137.2604566 | J152: 100.9168279 | K152: 111.5618911
B153: 2024-04-12 | C153: 114.827681 | D153: 101.2408166 | E153: 97.80299958 | F153: 128.4278717 | G153: 110.1994207 | H153: 117.2668969 | I153: 134.7275454 | J153: 98.6424086 | K153: 110.2918881
B154: 2024-04-15 | C154: 116.508781 | D154: 101.8321957 | E154: 97.39952186 | F154: 126.2517987 | G154: 111.2285204 | H154: 114.9481993 | I154: 134.3942676 | J154: 96.70494029 | K154: 109.7557802
B155: 2024-04-16 | C155: 117.0786454 | D155: 100.9286998 | E155: 96.35047979 | F155: 125.3022396 | G155: 109.9421458 | H155: 113.0735076 | I155: 133.3611065 | J155: 95.44137399 | K155: 108.9280005
B156: 2024-04-17 | C156: 117.2496047 | D156: 102.029322 | E156: 96.10839315 | F156: 125.3813695 | G156: 110.4566956 | H156: 110.7054761 | I156: 135.7107149 | J156: 94.68323422 | K156: 108.7375605
B157: 2024-04-18 | C157: 116.9646725 | D157: 102.4071476 | E157: 96.51187087 | F157: 125.5396294 | G157: 112.0003451 | H157: 110.5574741 | I157: 137.9270122 | J157: 93.84085669 | K157: 108.7594794
B158: 2024-04-19 | C158: 121.7230404 | D158: 104.0827217 | E158: 96.43117533 | F158: 124.82746 | G158: 112.4291366 | H158: 110.0148002 | I158: 140.7932011 | J158: 94.1778077 | K158: 109.5722407
B159: 2024-04-22 | C159: 124.6863354 | D159: 104.0334401 | E159: 96.43117533 | F159: 124.7483301 | G159: 111.3142787 | H159: 111.149482 | I159: 137.9603399 | J159: 94.93594748 | K159: 109.9653106
B160: 2024-04-23 | C160: 123.8315388 | D160: 103.1299442 | E160: 95.70491543 | F160: 126.6078834 | G160: 110.3709373 | H160: 111.297484 | I160: 138.4769205 | J160: 93.41966793 | K160: 109.5930563
B161: 2024-04-24 | C161: 123.2901676 | D161: 104.4112656 | E161: 97.15743523 | F161: 126.0539739 | G161: 109.8563875 | H161: 111.198816 | I161: 137.3771038 | J161: 92.15610163 | K161: 109.2363107
B162: 2024-04-25 | C162: 126.0825033 | D162: 102.2100212 | E162: 96.99604414 | F162: 125.3418046 | G162: 108.1412214 | H162: 110.4588061 | I162: 137.5937344 | J162: 91.22948635 | K162: 109.1530222
B163: 2024-04-26 | C163: 127.9840496 | D163: 103.0642355 | E163: 96.91534859 | F163: 127.4387476 | G163: 107.9697048 | H163: 112.5308337 | I163: 139.578703 | J163: 94.51475871 | K163: 110.7999558
B164: 2024-04-29 | C164: 130.2950758 | D164: 104.9697903 | E164: 97.64160849 | F164: 126.4496235 | G164: 108.8272879 | H164: 110.4094721 | I164: 139.6804614 | J164: 93.84085669 | K164: 111.5228696
B165: 2024-04-30 | C165: 129.4759779 | D165: 103.9677313 | E165: 98.04508621 | F165: 124.0757257 | G165: 111.0415496 | H165: 104.9827331 | I165: 137.0686607 | J165: 90.89253534 | K165: 110.2727101
B166: 2024-05-01
B167: 2024-05-02 | C167: 129.9732874 | D167: 105.0026447 | E167: 99.49760601 | F167: 125.887436 | G167: 118.0881986 | H167: 108.8307844 | I167: 136.1697942 | J167: 93.16695467 | K167: 111.3218598
B168: 2024-05-03 | C168: 128.0109876 | D168: 105.1176351 | E168: 99.82038819 | F168: 127.4709257 | G168: 119.5657218 | H168: 113.7148495 | I168: 137.0347412 | J168: 95.94680051 | K168: 112.5359576
B169: 2024-05-06 | C169: 128.6508901 | D169: 105.4297519 | E169: 100.4659525 | F169: 128.2626706 | G169: 118.5428211 | H169: 97.18796251 | I169: 135.2539679 | J169: 96.95765355 | K169: 112.4983197
B170: 2024-05-07 | C170: 131.7589884 | D170: 106.0868398 | E170: 101.6763857 | F170: 130.9150159 | G170: 117.2926092 | H170: 98.9146522 | I170: 135.915398 | J170: 97.54731782 | K170: 113.1505376
B171: 2024-05-08 | C171: 133.1606798 | D171: 105.1176351 | E171: 98.2064773 | F171: 131.7463481 | G171: 118.2018542 | H171: 97.2372965 | I171: 135.9662772 | J171: 98.30545759 | K171: 113.3873376
B172: 2024-05-09 | C172: 135.5069892 | D172: 105.9718494 | E172: 97.23813077 | F172: 127.7876237 | G172: 116.8379867 | H172: 95.11593488 | I172: 134.3890209 | J172: 94.43052096 | K172: 112.2554424
B173: 2024-05-10 | C173: 134.4709565 | D173: 105.610451 | E173: 97.15743523 | F173: 129.2523517 | G173: 115.1331522 | H173: 94.03058707 | I173: 132.9813621 | J173: 92.15610163 | K173: 111.7398523
B174: 2024-05-13 | C174: 134.501428 | D174: 106.2346845 | E174: 97.31882632 | F174: 130.8358415 | G174: 115.5877747 | H174: 93.8825851 | I174: 133.0831205 | J174: 94.59899647 | K174: 112.2260624
B175: 2024-05-14 | C175: 130.8143703 | D175: 106.1689757 | E175: 98.12578176 | F175: 132.2609823 | G175: 117.4062648 | H175: 96.20128268 | I175: 133.9989468 | J175: 96.62070253 | K175: 112.5419299
B176: 2024-05-15 | C176: 121.9471488 | D176: 105.856859 | E176: 99.33621492 | F176: 131.9046971 | G176: 119.1110992 | H176: 94.96793291 | I176: 134.3551014 | J176: 96.95765355 | K176: 112.1146724
B177: 2024-05-16 | C177: 119.7227256 | D177: 106.6289373 | E177: 99.90108373 | F177: 131.5088246 | G177: 117.4062648 | H177: 95.46127282 | I177: 135.2370082 | J177: 97.71579332 | K177: 112.3388797
B178: 2024-05-17 | C178: 117.5287739 | D178: 108.7151913 | E178: 99.90108373 | F178: 131.5484119 | G178: 118.0881986 | H178: 94.67192896 | I178: 133.2357583 | J178: 96.19951377 | K178: 112.2224895
B179: 2024-05-20 | C179: 117.924904 | D179: 108.6659097 | E179: 97.64160849 | F179: 131.1525394 | G179: 119.3384105 | H179: 97.73063641 | I179: 131.9637774 | J179: 96.28375152 | K179: 111.8723906
B180: 2024-05-21 | C180: 117.041229 | D180: 108.353793 | E180: 96.99604414 | F180: 130.4795563 | G180: 121.7251787 | H180: 99.16132215 | I180: 130.5561185 | J180: 96.11527602 | K180: 111.5752018
B181: 2024-05-22 | C181: 118.1382049 | D181: 107.4995787 | E181: 96.59256642 | F181: 128.4606068 | G181: 118.7701324 | H181: 98.22397632 | I181: 127.1132902 | J181: 93.16695467 | K181: 110.0326262
B182: 2024-05-23 | C182: 117.1326437 | D182: 106.858918 | E182: 96.51187087 | F182: 127.3125767 | G182: 117.974543 | H182: 95.26393685 | I182: 127.8086398 | J182: 93.58814343 | K182: 109.226424
B183: 2024-05-24 | C183: 116.7365135 | D183: 106.9081996 | E183: 95.78561098 | F183: 126.0853722 | G183: 117.974543 | H183: 94.72126295 | I183: 128.2326334 | J183: 93.84085669 | K183: 108.855273
B184: 2024-05-27 | C184: 117.924904 | D184: 107.269598 | E184: 95.30143771 | F184: 125.6499125 | G184: 118.0881986 | H184: 94.47459299 | I184: 127.3168072 | J184: 93.50390568 | K184: 109.0217537
B185: 2024-05-28 | C185: 119.9969695 | D185: 104.9533632 | E185: 93.52613574 | F185: 124.9769293 | G185: 116.0423973 | H185: 95.26393685 | I185: 126.5705784 | J185: 93.25119242 | K185: 108.3946248
B186: 2024-05-29 | C186: 120.2712135 | D186: 103.8855953 | E186: 92.96126693 | F186: 124.10601 | G186: 114.7921853 | H186: 95.31327084 | I186: 126.6723369 | J186: 91.65067512 | K186: 107.4556391
B187: 2024-05-30
B188: 2024-05-31 | C188: 124.0192143 | D188: 103.8198865 | E188: 93.28404911 | F188: 122.8392182 | G188: 113.0873509 | H188: 93.24124322 | I188: 125.264678 | J188: 90.13439556 | K188: 106.9221671
B189: 2024-06-03 | C189: 122.6479945 | D189: 101.6350693 | E189: 93.20335356 | F189: 124.5727399 | G189: 115.5877747 | H189: 91.90922546 | I189: 124.7389259 | J189: 90.05015781 | K189: 106.8639238
B190: 2024-06-04 | C190: 121.9471488 | D190: 100.6001559 | E190: 94.33309118 | F190: 125.0084475 | G190: 116.4970198 | H190: 91.76122348 | I190: 126.6384174 | J190: 90.21863332 | K190: 106.6629315
B191: 2024-06-05 | C191: 121.733848 | D191: 99.17098972 | E191: 93.36474465 | F191: 124.7707888 | G191: 117.0652979 | H191: 92.10656142 | I191: 132.3029723 | J191: 90.47134657 | K191: 106.3172636
B192: 2024-06-06 | C192: 121.7033764 | D192: 100.5508743 | E192: 95.38213326 | F192: 126.3551798 | G192: 118.6564767 | H192: 88.30784411 | I192: 131.1327499 | J192: 93.33543017 | K192: 107.6233545
B193: 2024-06-07 | C193: 117.589717 | D193: 99.23669851 | E193: 93.28404911 | F193: 124.5727399 | G193: 115.7014304 | H193: 86.97582634 | I193: 125.9261081 | J193: 90.55558433 | K193: 105.7566884
B194: 2024-06-10 | C194: 119.7531971 | D194: 100.3208935 | E194: 92.47709366 | F194: 123.5824956 | G194: 115.3604635 | H194: 88.70251603 | I194: 127.3676864 | J194: 88.36540275 | K194: 105.749963
B195: 2024-06-11 | C195: 119.6617825 | D195: 100.1730488 | E195: 91.9929204 | F195: 124.9688377 | G195: 116.3833642 | H195: 90.28120375 | I195: 128.2156737 | J195: 88.87082927 | K195: 106.5166884
B196: 2024-06-12 | C196: 117.4181052 | D196: 98.79316419 | E196: 90.94387832 | F196: 124.7707888 | G196: 113.3146622 | H196: 88.25851011 | I196: 124.0774958 | J196: 87.60726298 | K196: 105.028827
B197: 2024-06-13 | C197: 115.8842509 | D197: 99.9266408 | E197: 89.49135853 | F197: 123.4636663 | G197: 115.2468079 | H197: 90.62654169 | I197: 126.2992225 | J197: 84.91165489 | K197: 104.7061376
B198: 2024-06-14 | C198: 114.6634282 | D198: 99.58166966 | E198: 90.70179169 | F198: 123.3448369 | G198: 113.7692847 | H198: 90.82387765 | I198: 127.198089 | J198: 87.35454972 | K198: 104.7891985
B199: 2024-06-17 | C199: 114.7260345 | D199: 99.18741692 | E199: 90.70179169 | F199: 126.3551798 | G199: 114.4512185 | H199: 86.18648249 | I199: 126.0448263 | J199: 88.95506702 | K199: 104.3298726
B200: 2024-06-18 | C200: 118.5763216 | D200: 99.64737845 | E200: 90.78248724 | F200: 126.2759602 | G200: 114.905841 | H200: 86.77849038 | I200: 122.2967226 | J200: 89.37625579 | K200: 104.7612284
B201: 2024-06-19 | C201: 117.8250461 | D201: 99.95949519 | E201: 90.37900952 | F201: 127.2662046 | G201: 115.9287416 | H201: 87.56783424 | I201: 122.3136823 | J201: 88.83346379 | K201: 105.313712
B202: 2024-06-20 | C202: 120.2040853 | D202: 100.862991 | E202: 91.02457387 | F202: 126.3947895 | G202: 116.4970198 | H202: 88.55451406 | I202: 122.2119239 | J202: 87.64448818 | K202: 105.4753413
... 70 more rows

Sheet Base
D1: Planilha Auxiliar Não Modificar
B3: =_xll.ECOSECURITIES("stock","active",,"bra","xbsp",,,"Partic in Ibovespa>0") -> Código | C3: =_xll.ECONOMATICA($B$4:$B$202,"TICKER") -> Código | D3: =_xll.ECONOMATICA($B$4:$B$202,"NAME") -> Nome | E3: =_xll.ECONOMATICA($B$4:$B$202,"CLASS") -> Classe | F3: Nome e Classe | H3: Códico | I3: Nome
B4: ALOS3<XBSP> | C4: ALOS3 | D4: Allos | E4: ON | F4: =IFERROR(CONCATENATE(D4," ",E4),"") -> Allos ON | H4: =INDEX(C:C,MATCH(I4,F:F,0)) -> PETR3 | I4: ='Lâmina_Comparativo de Ações'!C7 -> Petrobras ON
B5: ALPA4<XBSP> | C5: ALPA4 | D5: Alpargatas | E5: PN | F5: =IFERROR(CONCATENATE(D5," ",E5),"") -> Alpargatas PN | H5: VALE3 | I5: ='Lâmina_Comparativo de Ações'!C8 -> Vale ON
B6: ABEV3<XBSP> | C6: ABEV3 | D6: Ambev S/A | E6: ON | F6: Ambev S/A ON | H6: ABEV3 | I6: ='Lâmina_Comparativo de Ações'!C9 -> Ambev S/A ON
B7: ASAI3<XBSP> | C7: ASAI3 | D7: Assai | E7: ON | F7: Assai ON | H7: ITUB4 | I7: ='Lâmina_Comparativo de Ações'!C10 -> ItauUnibanco PN
B8: AURE3<XBSP> | C8: AURE3 | D8: Auren | E8: ON | F8: Auren ON | H8: CMIG4 | I8: ='Lâmina_Comparativo de Ações'!C11 -> Cemig PN
B9: AZUL4<XBSP> | C9: AZUL4 | D9: Azul | E9: PN | F9: Azul PN | H9: BRKM5 | I9: ='Lâmina_Comparativo de Ações'!C12 -> Braskem PNA
B10: AZZA3<XBSP> | C10: AZZA3 | D10: Azzas 2154 | E10: ON | F10: Azzas 2154 ON | H10: SBSP3 | I10: ='Lâmina_Comparativo de Ações'!C13 -> Sabesp ON
B11: B3SA3<XBSP> | C11: B3SA3 | D11: B3 | E11: ON | F11: B3 ON | H11: B3SA3 | I11: ='Lâmina_Comparativo de Ações'!C14 -> B3 ON
B12: BBSE3<XBSP> | C12: BBSE3 | D12: BBSeguridade | E12: ON | F12: BBSeguridade ON
B13: BBDC3<XBSP> | C13: BBDC3 | D13: Bradesco | E13: ON | F13: Bradesco ON
B14: BBDC4<XBSP> | C14: BBDC4 | D14: Bradesco | E14: PN | F14: Bradesco PN
B15: BRAP4<XBSP> | C15: BRAP4 | D15: Bradespar | E15: PN | F15: Bradespar PN
B16: BBAS3<XBSP> | C16: BBAS3 | D16: Brasil | E16: ON | F16: Brasil ON
B17: BRKM5<XBSP> | C17: BRKM5 | D17: Braskem | E17: PNA | F17: Braskem PNA
B18: BRAV3<XBSP> | C18: BRAV3 | D18: Brava | E18: ON | F18: Brava ON
B19: BRFS3<XBSP> | C19: BRFS3 | D19: BRF SA | E19: ON | F19: BRF SA ON
B20: BPAC11<XBSP> | C20: BPAC11 | D20: Btgp Banco | E20: UNT | F20: Btgp Banco UNT
B21: CXSE3<XBSP> | C21: CXSE3 | D21: Caixa Seguri | E21: ON | F21: Caixa Seguri ON
B22: CRFB3<XBSP> | C22: CRFB3 | D22: Carrefour BR | E22: ON | F22: Carrefour BR ON
B23: CCRO3<XBSP> | C23: CCRO3 | D23: CCR SA | E23: ON | F23: CCR SA ON
B24: CMIG4<XBSP> | C24: CMIG4 | D24: Cemig | E24: PN | F24: Cemig PN
B25: COGN3<XBSP> | C25: COGN3 | D25: Cogna ON | E25: ON | F25: Cogna ON ON
B26: CPLE6<XBSP> | C26: CPLE6 | D26: Copel | E26: PNB | F26: Copel PNB
B27: CSAN3<XBSP> | C27: CSAN3 | D27: Cosan | E27: ON | F27: Cosan ON
B28: CPFE3<XBSP> | C28: CPFE3 | D28: CPFL Energia | E28: ON | F28: CPFL Energia ON
B29: CMIN3<XBSP> | C29: CMIN3 | D29: Csn Mineracao | E29: ON | F29: Csn Mineracao ON
B30: CVCB3<XBSP> | C30: CVCB3 | D30: Cvc Brasil | E30: ON | F30: Cvc Brasil ON
B31: CYRE3<XBSP> | C31: CYRE3 | D31: Cyrela Realt | E31: ON | F31: Cyrela Realt ON
B32: ELET3<XBSP> | C32: ELET3 | D32: Eletrobras | E32: ON | F32: Eletrobras ON
B33: ELET6<XBSP> | C33: ELET6 | D33: Eletrobras | E33: PNB | F33: Eletrobras PNB
B34: EMBR3<XBSP> | C34: EMBR3 | D34: Embraer | E34: ON | F34: Embraer ON
B35: ENGI11<XBSP> | C35: ENGI11 | D35: Energisa | E35: UNT N2 | F35: Energisa UNT N2
B36: ENEV3<XBSP> | C36: ENEV3 | D36: Eneva | E36: ON | F36: Eneva ON
B37: EGIE3<XBSP> | C37: EGIE3 | D37: Engie Brasil | E37: ON | F37: Engie Brasil ON
B38: EQTL3<XBSP> | C38: EQTL3 | D38: Equatorial | E38: ON | F38: Equatorial ON
B39: EZTC3<XBSP> | C39: EZTC3 | D39: Eztec | E39: ON | F39: Eztec ON
B40: FLRY3<XBSP> | C40: FLRY3 | D40: Fleury | E40: ON | F40: Fleury ON
B41: GGBR4<XBSP> | C41: GGBR4 | D41: Gerdau | E41: PN | F41: Gerdau PN
B42: GOAU4<XBSP> | C42: GOAU4 | D42: Gerdau Met | E42: PN | F42: Gerdau Met PN
B43: NTCO3<XBSP> | C43: NTCO3 | D43: Grupo Natura | E43: ON | F43: Grupo Natura ON
B44: HAPV3<XBSP> | C44: HAPV3 | D44: Hapvida | E44: ON | F44: Hapvida ON
B45: HYPE3<XBSP> | C45: HYPE3 | D45: Hypera | E45: ON | F45: Hypera ON
B46: IGTI11<XBSP> | C46: IGTI11 | D46: Iguatemi SA | E46: UNT | F46: Iguatemi SA UNT
B47: IRBR3<XBSP> | C47: IRBR3 | D47: Irbbrasil Re | E47: ON | F47: Irbbrasil Re ON
B48: ITSA4<XBSP> | C48: ITSA4 | D48: Itausa | E48: PN | F48: Itausa PN
B49: ITUB4<XBSP> | C49: ITUB4 | D49: ItauUnibanco | E49: PN | F49: ItauUnibanco PN
B50: JBSS3<XBSP> | C50: JBSS3 | D50: JBS | E50: ON | F50: JBS ON
B51: KLBN11<XBSP> | C51: KLBN11 | D51: Klabin S/A | E51: UNT N2 | F51: Klabin S/A UNT N2
B52: RENT3<XBSP> | C52: RENT3 | D52: Localiza | E52: ON | F52: Localiza ON
B53: LREN3<XBSP> | C53: LREN3 | D53: Lojas Renner | E53: ON | F53: Lojas Renner ON
B54: LWSA3<XBSP> | C54: LWSA3 | D54: Lwsa | E54: ON | F54: Lwsa ON
B55: MGLU3<XBSP> | C55: MGLU3 | D55: Magaz Luiza | E55: ON | F55: Magaz Luiza ON
B56: MRFG3<XBSP> | C56: MRFG3 | D56: Marfrig | E56: ON | F56: Marfrig ON
B57: BEEF3<XBSP> | C57: BEEF3 | D57: Minerva | E57: ON | F57: Minerva ON
B58: MRVE3<XBSP> | C58: MRVE3 | D58: MRV | E58: ON | F58: MRV ON
B59: MULT3<XBSP> | C59: MULT3 | D59: Multiplan | E59: ON | F59: Multiplan ON
B60: PCAR3<XBSP> | C60: PCAR3 | D60: P.Acucar-Cbd | E60: ON | F60: P.Acucar-Cbd ON
B61: PETR3<XBSP> | C61: PETR3 | D61: Petrobras | E61: ON | F61: Petrobras ON
B62: PETR4<XBSP> | C62: PETR4 | D62: Petrobras | E62: PN | F62: Petrobras PN
B63: RECV3<XBSP> | C63: RECV3 | D63: Petrorecsa | E63: ON | F63: Petrorecsa ON
B64: PRIO3<XBSP> | C64: PRIO3 | D64: Petrorio | E64: ON | F64: Petrorio ON
B65: PETZ3<XBSP> | C65: PETZ3 | D65: Petz | E65: ON | F65: Petz ON
B66: RADL3<XBSP> | C66: RADL3 | D66: RaiaDrogasil | E66: ON | F66: RaiaDrogasil ON
B67: RAIZ4<XBSP> | C67: RAIZ4 | D67: Raizen | E67: PN | F67: Raizen PN
B68: RDOR3<XBSP> | C68: RDOR3 | D68: Rede D Or | E68: ON | F68: Rede D Or ON
B69: RAIL3<XBSP> | C69: RAIL3 | D69: Rumo S.A. | E69: ON | F69: =IFERROR(CONCATENATE(D69," ",E69),"") -> Rumo S.A. ON
B70: SBSP3<XBSP> | C70: SBSP3 | D70: Sabesp | E70: ON | F70: Sabesp ON
B71: SANB11<XBSP> | C71: SANB11 | D71: Santander BR | E71: UNT | F71: Santander BR UNT
B72: STBP3<XBSP> | C72: STBP3 | D72: Santos Brp | E72: ON | F72: Santos Brp ON
B73: SMTO3<XBSP> | C73: SMTO3 | D73: Sao Martinho | E73: ON | F73: Sao Martinho ON
B74: CSNA3<XBSP> | C74: CSNA3 | D74: Sid Nacional | E74: ON | F74: Sid Nacional ON
B75: SLCE3<XBSP> | C75: SLCE3 | D75: SLC Agricola | E75: ON | F75: SLC Agricola ON
B76: SUZB3<XBSP> | C76: SUZB3 | D76: Suzano S.A. | E76: ON | F76: Suzano S.A. ON
B77: TAEE11<XBSP> | C77: TAEE11 | D77: Taesa | E77: UNT N2 | F77: Taesa UNT N2
B78: VIVT3<XBSP> | C78: VIVT3 | D78: Telef Brasil | E78: ON | F78: Telef Brasil ON
B79: TIMS3<XBSP> | C79: TIMS3 | D79: Tim | E79: ON | F79: Tim ON
B80: TOTS3<XBSP> | C80: TOTS3 | D80: Totvs | E80: ON | F80: Totvs ON
B81: TRPL4<XBSP> | C81: TRPL4 | D81: Tran Paulist | E81: PN | F81: Tran Paulist PN
B82: UGPA3<XBSP> | C82: UGPA3 | D82: Ultrapar | E82: ON | F82: Ultrapar ON
B83: USIM5<XBSP> | C83: USIM5 | D83: Usiminas | E83: PNA | F83: Usiminas PNA
B84: VALE3<XBSP> | C84: VALE3 | D84: Vale | E84: ON | F84: Vale ON
B85: VAMO3<XBSP> | C85: VAMO3 | D85: Vamos | E85: ON | F85: Vamos ON
B86: VBBR3<XBSP> | C86: VBBR3 | D86: Vibra | E86: ON | F86: Vibra ON
B87: VIVA3<XBSP> | C87: VIVA3 | D87: Vivara S.A. | E87: ON | F87: Vivara S.A. ON
B88: WEGE3<XBSP> | C88: WEGE3 | D88: Weg | E88: ON | F88: Weg ON
B89: YDUQ3<XBSP> | C89: YDUQ3 | D89: Yduqs Part | E89: ON | F89: Yduqs Part ON
F133: =IFERROR(CONCATENATE(D133," ",E133),"") -> 
F197: =IFERROR(CONCATENATE(D197," ",E197),"") -> 
